Workbook

Sheet Instructions
A1: Instructions: Wednesday night racing worksheet
A2: ONLY Enter DATA In The SHADED Areas!!!!
A3: 1. Select File - Save As, and Save with the "File name" as "Wed<Date>", eg "Wed13Apr16".
A4: 2. Select the Committee Boat Name (use pulldown) and Enter the Race Date.
A5: 3. Enter the Course (ENTER THE START MARK). Use the Pulldown List. The Course Length is automatically calculated.
B6: The Start location is assumed to be "X". If the start location is moved then the distance must be manually calculated.
B7: If the course does not change for later starts, just leave the course selections blank for those starts.
B8: If later starts have a different course, enter the new course for each start that is different.
A9: 4. Enter each Yacht Name for the appropriate start. Use the pulldown list. The Sail Number and PHRF Rating is automatically
A10: completed. If a Yacht Name is NOT in the pull down list, inquire about their race application and race fees.
A11: 5. If the Start Time is different than the default, enter the New Start Time in 24-hour military format: (hr) (min) (sec).
A12: 6. Save the File.
A13: 7. Enter the Finish Time for each boat in 24-hour military format: (hr) (min) (sec).
A14: If a boat is DNS or DNF, leave the Finish Time as 23:00:00. Enter the DNS or DNF in the Remarks column to the right of Corrected Time.
A15: 8. Save the File.
A16: 9. Select the Sort Fleet Button for each Class, located to the right of each Class's Remarks column.
A17: 10. Save the File.
A18: 11. Email the File to the Scorer at score@smsa.com
A20: V 2017.Wed.04 - PHRF Boats as of 06/02/17
A22: Notes/changes: | C22: 1)fixed multiple errors in macros and formulas
C23: updated boat info
C24: 2) Split Race results across 3 tabs. Eliminated CR allowance.
A29: PHRF Race Type: | C29: WL | E29: Mostly Windward Leward Course type
C30: NSWL | E30: Mostly Windward Leward Course type
C33: (NOT CURRENTLY SUPPORTED)
C34: CR | E34: All points of sail, or equal/greater ratio of Reaching to W/L
C35: NSWL | E35: Mostly Windward Leward Course type
C36: NSCR | E36: All points of sail, or equal/greater ratio of Reaching to W/L

Sheet Race NS
A2: Race Name : ---> | D2: Wednesday Night race - xx
A3: Committee Boat Name -->
B4: Date --> | D4: xx/xx/xx
B5: Conditions --> (optional)
B6: NonSpin Class - Start = | E6: 18 | F6: 30 | G6: 0
C7: Course = | E7: X | O7: <-- Default start location is 'X'.
C8: Distance = | E8: =IF(ISBLANK(F7), 0, VLOOKUP(E7,Course!$A$23:$T$41, LOOKUP(F7,Course!$A$2:$A$19,Course!$B$2:$B$19),FALSE))+IF(ISBLANK(G7), 0, VLOOKUP(F7,Course!$A$23:$T$41, LOOKUP(G7,Course!$A$2:$A$19,Course!$B$2:$B$19),FALSE))+IF(ISBLANK(J7), 0, VLOOKUP(G7,Course!$A$23:$T$41, LOOKUP(J7,Course!$A$2:$A$19,Course!$B$2:$B$19),FALSE))+IF(ISBLANK(K7), 0, VLOOKUP(J7,Course!$A$23:$T$41, LOOKUP(K7,Course!$A$2:$A$19,Course!$B$2:$B$19),FALSE))+IF(ISBLANK(L7), 0, VLOOKUP(K7,Course!$A$23:$T$41, LOOKUP(L7,Course!$A$2:$A$19,Course!$B$2:$B$19),FALSE))+IF(ISBLANK(M7), 0, VLOOKUP(L7,Course!$A$23:$T$41, LOOKUP(M7,Course!$A$2:$A$19,Course!$B$2:$B$19),FALSE)) -> 0 | O8: <-- Override Distance for Windward/Leward courses
C9: PHRF Type = | E9: NSWL
J10: Uncorrected | N10: PHRF | O10: Corrected
B11: Sail | C11: Yacht | D11: PHRF | E11: Finish Time | J11: Elapsed Time | N11: Allowance | O11: Time | T11: Remarks
B12: Number | C12: Name | D12: Rating | E12: (hr) | F12: (min) | G12: (sec) | J12: (hr) | K12: (min) | L12: (sec) | N12: (Sec) | O12: (Total Sec) | Q12: (hr) | R12: (min) | S12: (sec) | T12: (DNS/DNF)
A13: 1 | B13: =LOOKUP(C13, Boats!$A$3:B$47,Boats!B$3:B$47)&NSFLAG ->  | D13: =IF(E$9="NSWL",LOOKUP(C13, Boats!$A$3:D$47,Boats!G$3:G$47),(IF(E$9="WL",LOOKUP(C13, Boats!$A$3:D$47,Boats!E$3:E$47),(IF(E$9="NSCR",LOOKUP(C13, Boats!$A$3:D$47,Boats!H$3:H$47)))))) ->  | E13: 23 | F13: 0 | G13: 0 | H13: =((E13*60*60+F13*60+G13)-(E$6*60*60+F$6*60+G$6)) -> 16200 | I13: =J13*60*60+K13*60 -> 16200 | J13: =ROUNDDOWN(H13/60/60, 0) -> 4 | K13: =ROUNDDOWN((H13 - (J13*60*60))/60, 0) -> 30 | L13: =H13-I13 -> 0 | N13: =D13*$E$8 ->  | O13: =((J13*60+K13)*60+L13)-N13 ->  | P13: =Q13*60*60+R13*60 ->  | Q13: =ROUNDDOWN(O13/60/60, 0) ->  | R13: =ROUNDDOWN((O13 - (Q13*60*60))/60, 0) ->  | S13: =O13-P13 -> 
A14: 2 | B14: =LOOKUP(C14, Boats!$A$3:B$47,Boats!B$3:B$47)&NSFLAG ->  | D14: =IF(E$9="NSWL",LOOKUP(C14, Boats!$A$3:D$47,Boats!G$3:G$47),(IF(E$9="WL",LOOKUP(C14, Boats!$A$3:D$47,Boats!E$3:E$47),(IF(E$9="NSCR",LOOKUP(C14, Boats!$A$3:D$47,Boats!H$3:H$47)))))) ->  | E14: 23 | F14: 0 | G14: 0 | H14: =((E14*60*60+F14*60+G14)-(E$6*60*60+F$6*60+G$6)) -> 16200 | I14: =J14*60*60+K14*60 -> 16200 | J14: =ROUNDDOWN(H14/60/60, 0) -> 4 | K14: =ROUNDDOWN((H14 - (J14*60*60))/60, 0) -> 30 | L14: =H14-I14 -> 0 | N14: =D14*$E$8 ->  | O14: =((J14*60+K14)*60+L14)-N14 ->  | P14: =Q14*60*60+R14*60 ->  | Q14: =ROUNDDOWN(O14/60/60, 0) ->  | R14: =ROUNDDOWN((O14 - (Q14*60*60))/60, 0) ->  | S14: =O14-P14 -> 
A15: 3 | B15: =LOOKUP(C15, Boats!$A$3:B$47,Boats!B$3:B$47)&NSFLAG ->  | D15: =IF(E$9="NSWL",LOOKUP(C15, Boats!$A$3:D$47,Boats!G$3:G$47),(IF(E$9="WL",LOOKUP(C15, Boats!$A$3:D$47,Boats!E$3:E$47),(IF(E$9="NSCR",LOOKUP(C15, Boats!$A$3:D$47,Boats!H$3:H$47)))))) ->  | E15: 20 | F15: 6 | G15: 6 | H15: =((E15*60*60+F15*60+G15)-(E$6*60*60+F$6*60+G$6)) -> 5766 | I15: =J15*60*60+K15*60 -> 5760 | J15: =ROUNDDOWN(H15/60/60, 0) -> 1 | K15: =ROUNDDOWN((H15 - (J15*60*60))/60, 0) -> 36 | L15: =H15-I15 -> 6 | N15: =D15*$E$8 ->  | O15: =((J15*60+K15)*60+L15)-N15 ->  | P15: =Q15*60*60+R15*60 ->  | Q15: =ROUNDDOWN(O15/60/60, 0) ->  | R15: =ROUNDDOWN((O15 - (Q15*60*60))/60, 0) ->  | S15: =O15-P15 -> 
A16: 4 | B16: =LOOKUP(C16, Boats!$A$3:B$47,Boats!B$3:B$47)&NSFLAG ->  | D16: =IF(E$9="NSWL",LOOKUP(C16, Boats!$A$3:D$47,Boats!G$3:G$47),(IF(E$9="WL",LOOKUP(C16, Boats!$A$3:D$47,Boats!E$3:E$47),(IF(E$9="NSCR",LOOKUP(C16, Boats!$A$3:D$47,Boats!H$3:H$47)))))) ->  | E16: 23 | F16: 0 | G16: 0 | H16: =((E16*60*60+F16*60+G16)-(E$6*60*60+F$6*60+G$6)) -> 16200 | I16: =J16*60*60+K16*60 -> 16200 | J16: =ROUNDDOWN(H16/60/60, 0) -> 4 | K16: =ROUNDDOWN((H16 - (J16*60*60))/60, 0) -> 30 | L16: =H16-I16 -> 0 | N16: =D16*$E$8 ->  | O16: =((J16*60+K16)*60+L16)-N16 ->  | P16: =Q16*60*60+R16*60 ->  | Q16: =ROUNDDOWN(O16/60/60, 0) ->  | R16: =ROUNDDOWN((O16 - (Q16*60*60))/60, 0) ->  | S16: =O16-P16 -> 
A17: 5 | B17: =LOOKUP(C17, Boats!$A$3:B$47,Boats!B$3:B$47)&NSFLAG ->  | D17: =IF(E$9="NSWL",LOOKUP(C17, Boats!$A$3:D$47,Boats!G$3:G$47),(IF(E$9="WL",LOOKUP(C17, Boats!$A$3:D$47,Boats!E$3:E$47),(IF(E$9="NSCR",LOOKUP(C17, Boats!$A$3:D$47,Boats!H$3:H$47)))))) ->  | E17: 23 | F17: 0 | G17: 0 | H17: =((E17*60*60+F17*60+G17)-(E$6*60*60+F$6*60+G$6)) -> 16200 | I17: =J17*60*60+K17*60 -> 16200 | J17: =ROUNDDOWN(H17/60/60, 0) -> 4 | K17: =ROUNDDOWN((H17 - (J17*60*60))/60, 0) -> 30 | L17: =H17-I17 -> 0 | N17: =D17*$E$8 ->  | O17: =((J17*60+K17)*60+L17)-N17 ->  | P17: =Q17*60*60+R17*60 ->  | Q17: =ROUNDDOWN(O17/60/60, 0) ->  | R17: =ROUNDDOWN((O17 - (Q17*60*60))/60, 0) ->  | S17: =O17-P17 -> 
A18: 6 | B18: =LOOKUP(C18, Boats!$A$3:B$47,Boats!B$3:B$47)&NSFLAG ->  | D18: =IF(E$9="NSWL",LOOKUP(C18, Boats!$A$3:D$47,Boats!G$3:G$47),(IF(E$9="WL",LOOKUP(C18, Boats!$A$3:D$47,Boats!E$3:E$47),(IF(E$9="NSCR",LOOKUP(C18, Boats!$A$3:D$47,Boats!H$3:H$47)))))) ->  | E18: 23 | F18: 0 | G18: 0 | H18: =((E18*60*60+F18*60+G18)-(E$6*60*60+F$6*60+G$6)) -> 16200 | I18: =J18*60*60+K18*60 -> 16200 | J18: =ROUNDDOWN(H18/60/60, 0) -> 4 | K18: =ROUNDDOWN((H18 - (J18*60*60))/60, 0) -> 30 | L18: =H18-I18 -> 0 | N18: =D18*$E$8 ->  | O18: =((J18*60+K18)*60+L18)-N18 ->  | P18: =Q18*60*60+R18*60 ->  | Q18: =ROUNDDOWN(O18/60/60, 0) ->  | R18: =ROUNDDOWN((O18 - (Q18*60*60))/60, 0) ->  | S18: =O18-P18 -> 
A19: 7 | B19: =LOOKUP(C19, Boats!$A$3:B$47,Boats!B$3:B$47)&NSFLAG ->  | D19: =IF(E$9="NSWL",LOOKUP(C19, Boats!$A$3:D$47,Boats!G$3:G$47),(IF(E$9="WL",LOOKUP(C19, Boats!$A$3:D$47,Boats!E$3:E$47),(IF(E$9="NSCR",LOOKUP(C19, Boats!$A$3:D$47,Boats!H$3:H$47)))))) ->  | E19: 23 | F19: 0 | G19: 0 | H19: =((E19*60*60+F19*60+G19)-(E$6*60*60+F$6*60+G$6)) -> 16200 | I19: =J19*60*60+K19*60 -> 16200 | J19: =ROUNDDOWN(H19/60/60, 0) -> 4 | K19: =ROUNDDOWN((H19 - (J19*60*60))/60, 0) -> 30 | L19: =H19-I19 -> 0 | N19: =D19*$E$8 ->  | O19: =((J19*60+K19)*60+L19)-N19 ->  | P19: =Q19*60*60+R19*60 ->  | Q19: =ROUNDDOWN(O19/60/60, 0) ->  | R19: =ROUNDDOWN((O19 - (Q19*60*60))/60, 0) ->  | S19: =O19-P19 -> 
A20: 8 | B20: =LOOKUP(C20, Boats!$A$3:B$47,Boats!B$3:B$47)&NSFLAG ->  | D20: =IF(E$9="NSWL",LOOKUP(C20, Boats!$A$3:D$47,Boats!G$3:G$47),(IF(E$9="WL",LOOKUP(C20, Boats!$A$3:D$47,Boats!E$3:E$47),(IF(E$9="NSCR",LOOKUP(C20, Boats!$A$3:D$47,Boats!H$3:H$47)))))) ->  | E20: 23 | F20: 0 | G20: 0 | H20: =((E20*60*60+F20*60+G20)-(E$6*60*60+F$6*60+G$6)) -> 16200 | I20: =J20*60*60+K20*60 -> 16200 | J20: =ROUNDDOWN(H20/60/60, 0) -> 4 | K20: =ROUNDDOWN((H20 - (J20*60*60))/60, 0) -> 30 | L20: =H20-I20 -> 0 | N20: =D20*$E$8 ->  | O20: =((J20*60+K20)*60+L20)-N20 ->  | P20: =Q20*60*60+R20*60 ->  | Q20: =ROUNDDOWN(O20/60/60, 0) ->  | R20: =ROUNDDOWN((O20 - (Q20*60*60))/60, 0) ->  | S20: =O20-P20 -> 
A21: 9 | B21: =LOOKUP(C21, Boats!$A$3:B$47,Boats!B$3:B$47)&NSFLAG ->  | D21: =IF(E$9="NSWL",LOOKUP(C21, Boats!$A$3:D$47,Boats!G$3:G$47),(IF(E$9="WL",LOOKUP(C21, Boats!$A$3:D$47,Boats!E$3:E$47),(IF(E$9="NSCR",LOOKUP(C21, Boats!$A$3:D$47,Boats!H$3:H$47)))))) ->  | E21: 23 | F21: 0 | G21: 0 | H21: =((E21*60*60+F21*60+G21)-(E$6*60*60+F$6*60+G$6)) -> 16200 | I21: =J21*60*60+K21*60 -> 16200 | J21: =ROUNDDOWN(H21/60/60, 0) -> 4 | K21: =ROUNDDOWN((H21 - (J21*60*60))/60, 0) -> 30 | L21: =H21-I21 -> 0 | N21: =D21*$E$8 ->  | O21: =((J21*60+K21)*60+L21)-N21 ->  | P21: =Q21*60*60+R21*60 ->  | Q21: =ROUNDDOWN(O21/60/60, 0) ->  | R21: =ROUNDDOWN((O21 - (Q21*60*60))/60, 0) ->  | S21: =O21-P21 -> 
A22: 10 | B22: =LOOKUP(C22, Boats!$A$3:B$47,Boats!B$3:B$47)&NSFLAG ->  | D22: =IF(E$9="NSWL",LOOKUP(C22, Boats!$A$3:D$47,Boats!G$3:G$47),(IF(E$9="WL",LOOKUP(C22, Boats!$A$3:D$47,Boats!E$3:E$47),(IF(E$9="NSCR",LOOKUP(C22, Boats!$A$3:D$47,Boats!H$3:H$47)))))) ->  | E22: 23 | F22: 0 | G22: 0 | H22: =((E22*60*60+F22*60+G22)-(E$6*60*60+F$6*60+G$6)) -> 16200 | I22: =J22*60*60+K22*60 -> 16200 | J22: =ROUNDDOWN(H22/60/60, 0) -> 4 | K22: =ROUNDDOWN((H22 - (J22*60*60))/60, 0) -> 30 | L22: =H22-I22 -> 0 | N22: =D22*$E$8 ->  | O22: =((J22*60+K22)*60+L22)-N22 ->  | P22: =Q22*60*60+R22*60 ->  | Q22: =ROUNDDOWN(O22/60/60, 0) ->  | R22: =ROUNDDOWN((O22 - (Q22*60*60))/60, 0) ->  | S22: =O22-P22 -> 
A23: 11 | B23: =LOOKUP(C23, Boats!$A$3:B$47,Boats!B$3:B$47)&NSFLAG ->  | D23: =IF(E$9="NSWL",LOOKUP(C23, Boats!$A$3:D$47,Boats!G$3:G$47),(IF(E$9="WL",LOOKUP(C23, Boats!$A$3:D$47,Boats!E$3:E$47),(IF(E$9="NSCR",LOOKUP(C23, Boats!$A$3:D$47,Boats!H$3:H$47)))))) ->  | E23: 23 | F23: 0 | G23: 0 | H23: =((E23*60*60+F23*60+G23)-(E$6*60*60+F$6*60+G$6)) -> 16200 | I23: =J23*60*60+K23*60 -> 16200 | J23: =ROUNDDOWN(H23/60/60, 0) -> 4 | K23: =ROUNDDOWN((H23 - (J23*60*60))/60, 0) -> 30 | L23: =H23-I23 -> 0 | N23: =D23*$E$8 ->  | O23: =((J23*60+K23)*60+L23)-N23 ->  | P23: =Q23*60*60+R23*60 ->  | Q23: =ROUNDDOWN(O23/60/60, 0) ->  | R23: =ROUNDDOWN((O23 - (Q23*60*60))/60, 0) ->  | S23: =O23-P23 -> 
A24: 12 | B24: =LOOKUP(C24, Boats!$A$3:B$47,Boats!B$3:B$47)&NSFLAG ->  | D24: =IF(E$9="NSWL",LOOKUP(C24, Boats!$A$3:D$47,Boats!G$3:G$47),(IF(E$9="WL",LOOKUP(C24, Boats!$A$3:D$47,Boats!E$3:E$47),(IF(E$9="NSCR",LOOKUP(C24, Boats!$A$3:D$47,Boats!H$3:H$47)))))) ->  | E24: 23 | F24: 0 | G24: 0 | H24: =((E24*60*60+F24*60+G24)-(E$6*60*60+F$6*60+G$6)) -> 16200 | I24: =J24*60*60+K24*60 -> 16200 | J24: =ROUNDDOWN(H24/60/60, 0) -> 4 | K24: =ROUNDDOWN((H24 - (J24*60*60))/60, 0) -> 30 | L24: =H24-I24 -> 0 | N24: =D24*$E$8 ->  | O24: =((J24*60+K24)*60+L24)-N24 ->  | P24: =Q24*60*60+R24*60 ->  | Q24: =ROUNDDOWN(O24/60/60, 0) ->  | R24: =ROUNDDOWN((O24 - (Q24*60*60))/60, 0) ->  | S24: =O24-P24 -> 
A25: 13 | B25: =LOOKUP(C25, Boats!$A$3:B$47,Boats!B$3:B$47)&NSFLAG ->  | D25: =IF(E$9="NSWL",LOOKUP(C25, Boats!$A$3:D$47,Boats!G$3:G$47),(IF(E$9="WL",LOOKUP(C25, Boats!$A$3:D$47,Boats!E$3:E$47),(IF(E$9="NSCR",LOOKUP(C25, Boats!$A$3:D$47,Boats!H$3:H$47)))))) ->  | E25: 23 | F25: 0 | G25: 0 | H25: =((E25*60*60+F25*60+G25)-(E$6*60*60+F$6*60+G$6)) -> 16200 | I25: =J25*60*60+K25*60 -> 16200 | J25: =ROUNDDOWN(H25/60/60, 0) -> 4 | K25: =ROUNDDOWN((H25 - (J25*60*60))/60, 0) -> 30 | L25: =H25-I25 -> 0 | N25: =D25*$E$8 ->  | O25: =((J25*60+K25)*60+L25)-N25 ->  | P25: =Q25*60*60+R25*60 ->  | Q25: =ROUNDDOWN(O25/60/60, 0) ->  | R25: =ROUNDDOWN((O25 - (Q25*60*60))/60, 0) ->  | S25: =O25-P25 -> 
A26: 14 | B26: =LOOKUP(C26, Boats!$A$3:B$47,Boats!B$3:B$47)&NSFLAG ->  | D26: =IF(E$9="NSWL",LOOKUP(C26, Boats!$A$3:D$47,Boats!G$3:G$47),(IF(E$9="WL",LOOKUP(C26, Boats!$A$3:D$47,Boats!E$3:E$47),(IF(E$9="NSCR",LOOKUP(C26, Boats!$A$3:D$47,Boats!H$3:H$47)))))) ->  | E26: 23 | F26: 0 | G26: 0 | H26: =((E26*60*60+F26*60+G26)-(E$6*60*60+F$6*60+G$6)) -> 16200 | I26: =J26*60*60+K26*60 -> 16200 | J26: =ROUNDDOWN(H26/60/60, 0) -> 4 | K26: =ROUNDDOWN((H26 - (J26*60*60))/60, 0) -> 30 | L26: =H26-I26 -> 0 | N26: =D26*$E$8 ->  | O26: =((J26*60+K26)*60+L26)-N26 ->  | P26: =Q26*60*60+R26*60 ->  | Q26: =ROUNDDOWN(O26/60/60, 0) ->  | R26: =ROUNDDOWN((O26 - (Q26*60*60))/60, 0) ->  | S26: =O26-P26 -> 
A27: 15 | B27: =LOOKUP(C27, Boats!$A$3:B$47,Boats!B$3:B$47)&NSFLAG ->  | D27: =IF(E$9="NSWL",LOOKUP(C27, Boats!$A$3:D$47,Boats!G$3:G$47),(IF(E$9="WL",LOOKUP(C27, Boats!$A$3:D$47,Boats!E$3:E$47),(IF(E$9="NSCR",LOOKUP(C27, Boats!$A$3:D$47,Boats!H$3:H$47)))))) ->  | E27: 23 | F27: 0 | G27: 0 | H27: =((E27*60*60+F27*60+G27)-(E$6*60*60+F$6*60+G$6)) -> 16200 | I27: =J27*60*60+K27*60 -> 16200 | J27: =ROUNDDOWN(H27/60/60, 0) -> 4 | K27: =ROUNDDOWN((H27 - (J27*60*60))/60, 0) -> 30 | L27: =H27-I27 -> 0 | N27: =D27*$E$8 ->  | O27: =((J27*60+K27)*60+L27)-N27 ->  | P27: =Q27*60*60+R27*60 ->  | Q27: =ROUNDDOWN(O27/60/60, 0) ->  | R27: =ROUNDDOWN((O27 - (Q27*60*60))/60, 0) ->  | S27: =O27-P27 -> 
A28: 16 | B28: =LOOKUP(C28, Boats!$A$3:B$47,Boats!B$3:B$47)&NSFLAG ->  | D28: =IF(E$9="NSWL",LOOKUP(C28, Boats!$A$3:D$47,Boats!G$3:G$47),(IF(E$9="WL",LOOKUP(C28, Boats!$A$3:D$47,Boats!E$3:E$47),(IF(E$9="NSCR",LOOKUP(C28, Boats!$A$3:D$47,Boats!H$3:H$47)))))) ->  | E28: 23 | F28: 0 | G28: 0 | H28: =((E28*60*60+F28*60+G28)-(E$6*60*60+F$6*60+G$6)) -> 16200 | I28: =J28*60*60+K28*60 -> 16200 | J28: =ROUNDDOWN(H28/60/60, 0) -> 4 | K28: =ROUNDDOWN((H28 - (J28*60*60))/60, 0) -> 30 | L28: =H28-I28 -> 0 | N28: =D28*$E$8 ->  | O28: =((J28*60+K28)*60+L28)-N28 ->  | P28: =Q28*60*60+R28*60 ->  | Q28: =ROUNDDOWN(O28/60/60, 0) ->  | R28: =ROUNDDOWN((O28 - (Q28*60*60))/60, 0) ->  | S28: =O28-P28 -> 

Sheet Race C
A2: Race Name : ---> | D2: ='Race NS'!D2 -> Wednesday Night race - xx
A3: Committee Boat Name --> | D3: ='Race NS'!D3 -> 0
B4: Date --> | D4: ='Race NS'!D4 -> xx/xx/xx
B5: Conditions --> (optional) | D5: ='Race NS'!D5 -> 
B6: Spin 'C' - Start = | E6: 18 | F6: 30 | G6: 0
C7: Course = | E7: X | O7: Leave course blank if the same as prior section start
C8: Distance = | E8: =IF(ISBLANK(F7),'Race NS'!$E$8, VLOOKUP( E7,Course!$A$23:$T$41, LOOKUP(F7,Course!$A$2:$A$19,Course!$B$2:$B$19),FALSE))+IF(ISBLANK(G7), 0, VLOOKUP(F7,Course!$A$23:$T$41, LOOKUP(G7,Course!$A$2:$A$19,Course!$B$2:$B$19),FALSE))+IF(ISBLANK(J7), 0, VLOOKUP(G7,Course!$A$23:$T$41, LOOKUP(J7,Course!$A$2:$A$19,Course!$B$2:$B$19),FALSE))+IF(ISBLANK(K7), 0, VLOOKUP(J7,Course!$A$23:$T$41, LOOKUP(K7,Course!$A$2:$A$19,Course!$B$2:$B$19),FALSE))+IF(ISBLANK(L7), 0, VLOOKUP(K7,Course!$A$23:$T$41, LOOKUP(L7,Course!$A$2:$A$19,Course!$B$2:$B$19),FALSE))+IF(ISBLANK(M7), 0, VLOOKUP(L7,Course!$A$23:$T$41, LOOKUP(M7,Course!$A$2:$A$19,Course!$B$2:$B$19),FALSE)) -> 0
C9: PHRF Type = | E9: WL
J10: Uncorrected | N10: PHRF | O10: Corrected
B11: Sail | C11: Yacht | D11: PHRF | E11: Finish Time | J11: Elapsed Time | N11: Allowance | O11: Time | T11: Remarks
B12: Number | C12: Name | D12: Rating | E12: (hr) | F12: (min) | G12: (sec) | J12: (hr) | K12: (min) | L12: (sec) | N12: (Sec) | O12: (Total Sec) | Q12: (hr) | R12: (min) | S12: (sec) | T12: (DNS/DNF)
A13: 1 | B13: =LOOKUP(C13, Boats!$A$3:B$47,Boats!B$3:B$47) ->  | D13: =IF(E$9="NS",LOOKUP(C13, Boats!$A$3:D$47,Boats!H$3:H$47),(IF(E$9="WL",LOOKUP(C13, Boats!$A$3:D$47,Boats!E$3:E$47),(IF(E$9="CR",LOOKUP(C13, Boats!$A$3:D$47,Boats!F$3:F$47)))))) ->  | E13: 23 | F13: 0 | G13: 0 | H13: =((E13*60*60+F13*60+G13)-(E$6*60*60+F$6*60+G$6)) -> 16200 | I13: =J13*60*60+K13*60 -> 16200 | J13: =ROUNDDOWN(H13/60/60, 0) -> 4 | K13: =ROUNDDOWN((H13 - (J13*60*60))/60, 0) -> 30 | L13: =H13-I13 -> 0 | N13: =D13*$E$8 ->  | O13: =((J13*60+K13)*60+L13)-N13 ->  | P13: =Q13*60*60+R13*60 ->  | Q13: =ROUNDDOWN(O13/60/60, 0) ->  | R13: =ROUNDDOWN((O13 - (Q13*60*60))/60, 0) ->  | S13: =O13-P13 -> 
A14: 2 | B14: =LOOKUP(C14, Boats!$A$3:B$47,Boats!B$3:B$47) ->  | D14: =IF(E$9="NS",LOOKUP(C14, Boats!$A$3:D$47,Boats!H$3:H$47),(IF(E$9="WL",LOOKUP(C14, Boats!$A$3:D$47,Boats!E$3:E$47),(IF(E$9="CR",LOOKUP(C14, Boats!$A$3:D$47,Boats!F$3:F$47)))))) ->  | E14: 23 | F14: 0 | G14: 0 | H14: =((E14*60*60+F14*60+G14)-(E$6*60*60+F$6*60+G$6)) -> 16200 | I14: =J14*60*60+K14*60 -> 16200 | J14: =ROUNDDOWN(H14/60/60, 0) -> 4 | K14: =ROUNDDOWN((H14 - (J14*60*60))/60, 0) -> 30 | L14: =H14-I14 -> 0 | N14: =D14*$E$8 ->  | O14: =((J14*60+K14)*60+L14)-N14 ->  | P14: =Q14*60*60+R14*60 ->  | Q14: =ROUNDDOWN(O14/60/60, 0) ->  | R14: =ROUNDDOWN((O14 - (Q14*60*60))/60, 0) ->  | S14: =O14-P14 -> 
A15: 3 | B15: =LOOKUP(C15, Boats!$A$3:B$47,Boats!B$3:B$47) ->  | D15: =IF(E$9="NS",LOOKUP(C15, Boats!$A$3:D$47,Boats!H$3:H$47),(IF(E$9="WL",LOOKUP(C15, Boats!$A$3:D$47,Boats!E$3:E$47),(IF(E$9="CR",LOOKUP(C15, Boats!$A$3:D$47,Boats!F$3:F$47)))))) ->  | E15: 23 | F15: 0 | G15: 0 | H15: =((E15*60*60+F15*60+G15)-(E$6*60*60+F$6*60+G$6)) -> 16200 | I15: =J15*60*60+K15*60 -> 16200 | J15: =ROUNDDOWN(H15/60/60, 0) -> 4 | K15: =ROUNDDOWN((H15 - (J15*60*60))/60, 0) -> 30 | L15: =H15-I15 -> 0 | N15: =D15*$E$8 ->  | O15: =((J15*60+K15)*60+L15)-N15 ->  | P15: =Q15*60*60+R15*60 ->  | Q15: =ROUNDDOWN(O15/60/60, 0) ->  | R15: =ROUNDDOWN((O15 - (Q15*60*60))/60, 0) ->  | S15: =O15-P15 -> 
A16: 4 | B16: =LOOKUP(C16, Boats!$A$3:B$47,Boats!B$3:B$47) ->  | D16: =IF(E$9="NS",LOOKUP(C16, Boats!$A$3:D$47,Boats!H$3:H$47),(IF(E$9="WL",LOOKUP(C16, Boats!$A$3:D$47,Boats!E$3:E$47),(IF(E$9="CR",LOOKUP(C16, Boats!$A$3:D$47,Boats!F$3:F$47)))))) ->  | E16: 23 | F16: 0 | G16: 0 | H16: =((E16*60*60+F16*60+G16)-(E$6*60*60+F$6*60+G$6)) -> 16200 | I16: =J16*60*60+K16*60 -> 16200 | J16: =ROUNDDOWN(H16/60/60, 0) -> 4 | K16: =ROUNDDOWN((H16 - (J16*60*60))/60, 0) -> 30 | L16: =H16-I16 -> 0 | N16: =D16*$E$8 ->  | O16: =((J16*60+K16)*60+L16)-N16 ->  | P16: =Q16*60*60+R16*60 ->  | Q16: =ROUNDDOWN(O16/60/60, 0) ->  | R16: =ROUNDDOWN((O16 - (Q16*60*60))/60, 0) ->  | S16: =O16-P16 -> 
A17: 5 | B17: =LOOKUP(C17, Boats!$A$3:B$47,Boats!B$3:B$47) ->  | D17: =IF(E$9="NS",LOOKUP(C17, Boats!$A$3:D$47,Boats!H$3:H$47),(IF(E$9="WL",LOOKUP(C17, Boats!$A$3:D$47,Boats!E$3:E$47),(IF(E$9="CR",LOOKUP(C17, Boats!$A$3:D$47,Boats!F$3:F$47)))))) ->  | E17: 23 | F17: 0 | G17: 0 | H17: =((E17*60*60+F17*60+G17)-(E$6*60*60+F$6*60+G$6)) -> 16200 | I17: =J17*60*60+K17*60 -> 16200 | J17: =ROUNDDOWN(H17/60/60, 0) -> 4 | K17: =ROUNDDOWN((H17 - (J17*60*60))/60, 0) -> 30 | L17: =H17-I17 -> 0 | N17: =D17*$E$8 ->  | O17: =((J17*60+K17)*60+L17)-N17 ->  | P17: =Q17*60*60+R17*60 ->  | Q17: =ROUNDDOWN(O17/60/60, 0) ->  | R17: =ROUNDDOWN((O17 - (Q17*60*60))/60, 0) ->  | S17: =O17-P17 -> 
A18: 6 | B18: =LOOKUP(C18, Boats!$A$3:B$47,Boats!B$3:B$47) ->  | D18: =IF(E$9="NS",LOOKUP(C18, Boats!$A$3:D$47,Boats!H$3:H$47),(IF(E$9="WL",LOOKUP(C18, Boats!$A$3:D$47,Boats!E$3:E$47),(IF(E$9="CR",LOOKUP(C18, Boats!$A$3:D$47,Boats!F$3:F$47)))))) ->  | E18: 23 | F18: 0 | G18: 0 | H18: =((E18*60*60+F18*60+G18)-(E$6*60*60+F$6*60+G$6)) -> 16200 | I18: =J18*60*60+K18*60 -> 16200 | J18: =ROUNDDOWN(H18/60/60, 0) -> 4 | K18: =ROUNDDOWN((H18 - (J18*60*60))/60, 0) -> 30 | L18: =H18-I18 -> 0 | N18: =D18*$E$8 ->  | O18: =((J18*60+K18)*60+L18)-N18 ->  | P18: =Q18*60*60+R18*60 ->  | Q18: =ROUNDDOWN(O18/60/60, 0) ->  | R18: =ROUNDDOWN((O18 - (Q18*60*60))/60, 0) ->  | S18: =O18-P18 -> 
A19: 7 | B19: =LOOKUP(C19, Boats!$A$3:B$47,Boats!B$3:B$47) ->  | D19: =IF(E$9="NS",LOOKUP(C19, Boats!$A$3:D$47,Boats!H$3:H$47),(IF(E$9="WL",LOOKUP(C19, Boats!$A$3:D$47,Boats!E$3:E$47),(IF(E$9="CR",LOOKUP(C19, Boats!$A$3:D$47,Boats!F$3:F$47)))))) ->  | E19: 23 | F19: 0 | G19: 0 | H19: =((E19*60*60+F19*60+G19)-(E$6*60*60+F$6*60+G$6)) -> 16200 | I19: =J19*60*60+K19*60 -> 16200 | J19: =ROUNDDOWN(H19/60/60, 0) -> 4 | K19: =ROUNDDOWN((H19 - (J19*60*60))/60, 0) -> 30 | L19: =H19-I19 -> 0 | N19: =D19*$E$8 ->  | O19: =((J19*60+K19)*60+L19)-N19 ->  | P19: =Q19*60*60+R19*60 ->  | Q19: =ROUNDDOWN(O19/60/60, 0) ->  | R19: =ROUNDDOWN((O19 - (Q19*60*60))/60, 0) ->  | S19: =O19-P19 -> 
A20: 8 | B20: =LOOKUP(C20, Boats!$A$3:B$47,Boats!B$3:B$47) ->  | D20: =IF(E$9="NS",LOOKUP(C20, Boats!$A$3:D$47,Boats!H$3:H$47),(IF(E$9="WL",LOOKUP(C20, Boats!$A$3:D$47,Boats!E$3:E$47),(IF(E$9="CR",LOOKUP(C20, Boats!$A$3:D$47,Boats!F$3:F$47)))))) ->  | E20: 23 | F20: 0 | G20: 0 | H20: =((E20*60*60+F20*60+G20)-(E$6*60*60+F$6*60+G$6)) -> 16200 | I20: =J20*60*60+K20*60 -> 16200 | J20: =ROUNDDOWN(H20/60/60, 0) -> 4 | K20: =ROUNDDOWN((H20 - (J20*60*60))/60, 0) -> 30 | L20: =H20-I20 -> 0 | N20: =D20*$E$8 ->  | O20: =((J20*60+K20)*60+L20)-N20 ->  | P20: =Q20*60*60+R20*60 ->  | Q20: =ROUNDDOWN(O20/60/60, 0) ->  | R20: =ROUNDDOWN((O20 - (Q20*60*60))/60, 0) ->  | S20: =O20-P20 -> 
A21: 9 | B21: =LOOKUP(C21, Boats!$A$3:B$47,Boats!B$3:B$47) ->  | D21: =IF(E$9="NS",LOOKUP(C21, Boats!$A$3:D$47,Boats!H$3:H$47),(IF(E$9="WL",LOOKUP(C21, Boats!$A$3:D$47,Boats!E$3:E$47),(IF(E$9="CR",LOOKUP(C21, Boats!$A$3:D$47,Boats!F$3:F$47)))))) ->  | E21: 23 | F21: 0 | G21: 0 | H21: =((E21*60*60+F21*60+G21)-(E$6*60*60+F$6*60+G$6)) -> 16200 | I21: =J21*60*60+K21*60 -> 16200 | J21: =ROUNDDOWN(H21/60/60, 0) -> 4 | K21: =ROUNDDOWN((H21 - (J21*60*60))/60, 0) -> 30 | L21: =H21-I21 -> 0 | N21: =D21*$E$8 ->  | O21: =((J21*60+K21)*60+L21)-N21 ->  | P21: =Q21*60*60+R21*60 ->  | Q21: =ROUNDDOWN(O21/60/60, 0) ->  | R21: =ROUNDDOWN((O21 - (Q21*60*60))/60, 0) ->  | S21: =O21-P21 -> 
A22: 10 | B22: =LOOKUP(C22, Boats!$A$3:B$47,Boats!B$3:B$47) ->  | D22: =IF(E$9="NS",LOOKUP(C22, Boats!$A$3:D$47,Boats!H$3:H$47),(IF(E$9="WL",LOOKUP(C22, Boats!$A$3:D$47,Boats!E$3:E$47),(IF(E$9="CR",LOOKUP(C22, Boats!$A$3:D$47,Boats!F$3:F$47)))))) ->  | E22: 23 | F22: 0 | G22: 0 | H22: =((E22*60*60+F22*60+G22)-(E$6*60*60+F$6*60+G$6)) -> 16200 | I22: =J22*60*60+K22*60 -> 16200 | J22: =ROUNDDOWN(H22/60/60, 0) -> 4 | K22: =ROUNDDOWN((H22 - (J22*60*60))/60, 0) -> 30 | L22: =H22-I22 -> 0 | N22: =D22*$E$8 ->  | O22: =((J22*60+K22)*60+L22)-N22 ->  | P22: =Q22*60*60+R22*60 ->  | Q22: =ROUNDDOWN(O22/60/60, 0) ->  | R22: =ROUNDDOWN((O22 - (Q22*60*60))/60, 0) ->  | S22: =O22-P22 -> 
A23: 11 | B23: =LOOKUP(C23, Boats!$A$3:B$47,Boats!B$3:B$47) ->  | D23: =IF(E$9="NS",LOOKUP(C23, Boats!$A$3:D$47,Boats!H$3:H$47),(IF(E$9="WL",LOOKUP(C23, Boats!$A$3:D$47,Boats!E$3:E$47),(IF(E$9="CR",LOOKUP(C23, Boats!$A$3:D$47,Boats!F$3:F$47)))))) ->  | E23: 23 | F23: 0 | G23: 0 | H23: =((E23*60*60+F23*60+G23)-(E$6*60*60+F$6*60+G$6)) -> 16200 | I23: =J23*60*60+K23*60 -> 16200 | J23: =ROUNDDOWN(H23/60/60, 0) -> 4 | K23: =ROUNDDOWN((H23 - (J23*60*60))/60, 0) -> 30 | L23: =H23-I23 -> 0 | N23: =D23*$E$8 ->  | O23: =((J23*60+K23)*60+L23)-N23 ->  | P23: =Q23*60*60+R23*60 ->  | Q23: =ROUNDDOWN(O23/60/60, 0) ->  | R23: =ROUNDDOWN((O23 - (Q23*60*60))/60, 0) ->  | S23: =O23-P23 -> 
A24: 12 | B24: =LOOKUP(C24, Boats!$A$3:B$47,Boats!B$3:B$47) ->  | D24: =IF(E$9="NS",LOOKUP(C24, Boats!$A$3:D$47,Boats!H$3:H$47),(IF(E$9="WL",LOOKUP(C24, Boats!$A$3:D$47,Boats!E$3:E$47),(IF(E$9="CR",LOOKUP(C24, Boats!$A$3:D$47,Boats!F$3:F$47)))))) ->  | E24: 23 | F24: 0 | G24: 0 | H24: =((E24*60*60+F24*60+G24)-(E$6*60*60+F$6*60+G$6)) -> 16200 | I24: =J24*60*60+K24*60 -> 16200 | J24: =ROUNDDOWN(H24/60/60, 0) -> 4 | K24: =ROUNDDOWN((H24 - (J24*60*60))/60, 0) -> 30 | L24: =H24-I24 -> 0 | N24: =D24*$E$8 ->  | O24: =((J24*60+K24)*60+L24)-N24 ->  | P24: =Q24*60*60+R24*60 ->  | Q24: =ROUNDDOWN(O24/60/60, 0) ->  | R24: =ROUNDDOWN((O24 - (Q24*60*60))/60, 0) ->  | S24: =O24-P24 -> 
A25: 13 | B25: =LOOKUP(C25, Boats!$A$3:B$47,Boats!B$3:B$47) ->  | D25: =IF(E$9="NS",LOOKUP(C25, Boats!$A$3:D$47,Boats!H$3:H$47),(IF(E$9="WL",LOOKUP(C25, Boats!$A$3:D$47,Boats!E$3:E$47),(IF(E$9="CR",LOOKUP(C25, Boats!$A$3:D$47,Boats!F$3:F$47)))))) ->  | E25: 23 | F25: 0 | G25: 0 | H25: =((E25*60*60+F25*60+G25)-(E$6*60*60+F$6*60+G$6)) -> 16200 | I25: =J25*60*60+K25*60 -> 16200 | J25: =ROUNDDOWN(H25/60/60, 0) -> 4 | K25: =ROUNDDOWN((H25 - (J25*60*60))/60, 0) -> 30 | L25: =H25-I25 -> 0 | N25: =D25*$E$8 ->  | O25: =((J25*60+K25)*60+L25)-N25 ->  | P25: =Q25*60*60+R25*60 ->  | Q25: =ROUNDDOWN(O25/60/60, 0) ->  | R25: =ROUNDDOWN((O25 - (Q25*60*60))/60, 0) ->  | S25: =O25-P25 -> 
A26: 14 | B26: =LOOKUP(C26, Boats!$A$3:B$47,Boats!B$3:B$47) ->  | D26: =IF(E$9="NS",LOOKUP(C26, Boats!$A$3:D$47,Boats!H$3:H$47),(IF(E$9="WL",LOOKUP(C26, Boats!$A$3:D$47,Boats!E$3:E$47),(IF(E$9="CR",LOOKUP(C26, Boats!$A$3:D$47,Boats!F$3:F$47)))))) ->  | E26: 23 | F26: 0 | G26: 0 | H26: =((E26*60*60+F26*60+G26)-(E$6*60*60+F$6*60+G$6)) -> 16200 | I26: =J26*60*60+K26*60 -> 16200 | J26: =ROUNDDOWN(H26/60/60, 0) -> 4 | K26: =ROUNDDOWN((H26 - (J26*60*60))/60, 0) -> 30 | L26: =H26-I26 -> 0 | N26: =D26*$E$8 ->  | O26: =((J26*60+K26)*60+L26)-N26 ->  | P26: =Q26*60*60+R26*60 ->  | Q26: =ROUNDDOWN(O26/60/60, 0) ->  | R26: =ROUNDDOWN((O26 - (Q26*60*60))/60, 0) ->  | S26: =O26-P26 -> 
A27: 15 | B27: =LOOKUP(C27, Boats!$A$3:B$47,Boats!B$3:B$47) ->  | D27: =IF(E$9="NS",LOOKUP(C27, Boats!$A$3:D$47,Boats!H$3:H$47),(IF(E$9="WL",LOOKUP(C27, Boats!$A$3:D$47,Boats!E$3:E$47),(IF(E$9="CR",LOOKUP(C27, Boats!$A$3:D$47,Boats!F$3:F$47)))))) ->  | E27: 23 | F27: 0 | G27: 0 | H27: =((E27*60*60+F27*60+G27)-(E$6*60*60+F$6*60+G$6)) -> 16200 | I27: =J27*60*60+K27*60 -> 16200 | J27: =ROUNDDOWN(H27/60/60, 0) -> 4 | K27: =ROUNDDOWN((H27 - (J27*60*60))/60, 0) -> 30 | L27: =H27-I27 -> 0 | N27: =D27*$E$8 ->  | O27: =((J27*60+K27)*60+L27)-N27 ->  | P27: =Q27*60*60+R27*60 ->  | Q27: =ROUNDDOWN(O27/60/60, 0) ->  | R27: =ROUNDDOWN((O27 - (Q27*60*60))/60, 0) ->  | S27: =O27-P27 -> 
A28: 16 | B28: =LOOKUP(C28, Boats!$A$3:B$47,Boats!B$3:B$47) ->  | D28: =IF(E$9="NS",LOOKUP(C28, Boats!$A$3:D$47,Boats!H$3:H$47),(IF(E$9="WL",LOOKUP(C28, Boats!$A$3:D$47,Boats!E$3:E$47),(IF(E$9="CR",LOOKUP(C28, Boats!$A$3:D$47,Boats!F$3:F$47)))))) ->  | E28: 23 | F28: 0 | G28: 0 | H28: =((E28*60*60+F28*60+G28)-(E$6*60*60+F$6*60+G$6)) -> 16200 | I28: =J28*60*60+K28*60 -> 16200 | J28: =ROUNDDOWN(H28/60/60, 0) -> 4 | K28: =ROUNDDOWN((H28 - (J28*60*60))/60, 0) -> 30 | L28: =H28-I28 -> 0 | N28: =D28*$E$8 ->  | O28: =((J28*60+K28)*60+L28)-N28 ->  | P28: =Q28*60*60+R28*60 ->  | Q28: =ROUNDDOWN(O28/60/60, 0) ->  | R28: =ROUNDDOWN((O28 - (Q28*60*60))/60, 0) ->  | S28: =O28-P28 -> 

Sheet Race B
A2: Race Name : ---> | D2: ='Race NS'!D2 -> Wednesday Night race - xx
A3: Committee Boat Name --> | D3: ='Race NS'!D3 -> 0
B4: Date --> | D4: ='Race NS'!D4 -> xx/xx/xx
B5: Conditions --> (optional) | D5: ='Race NS'!D5 -> 
B6: Spin 'B' - Start = | E6: 18 | F6: 35 | G6: 0
C7: Course = | E7: X | O7: Leave course blank if the same as prior section start
C8: Distance = | E8: =IF(ISBLANK(F7),'Race NS'!$E$8, VLOOKUP( E7,Course!$A$23:$T$41, LOOKUP(F7,Course!$A$2:$A$19,Course!$B$2:$B$19),FALSE))+IF(ISBLANK(G7), 0, VLOOKUP(F7,Course!$A$23:$T$41, LOOKUP(G7,Course!$A$2:$A$19,Course!$B$2:$B$19),FALSE))+IF(ISBLANK(J7), 0, VLOOKUP(G7,Course!$A$23:$T$41, LOOKUP(J7,Course!$A$2:$A$19,Course!$B$2:$B$19),FALSE))+IF(ISBLANK(K7), 0, VLOOKUP(J7,Course!$A$23:$T$41, LOOKUP(K7,Course!$A$2:$A$19,Course!$B$2:$B$19),FALSE))+IF(ISBLANK(L7), 0, VLOOKUP(K7,Course!$A$23:$T$41, LOOKUP(L7,Course!$A$2:$A$19,Course!$B$2:$B$19),FALSE))+IF(ISBLANK(M7), 0, VLOOKUP(L7,Course!$A$23:$T$41, LOOKUP(M7,Course!$A$2:$A$19,Course!$B$2:$B$19),FALSE)) -> 0
C9: PHRF Type = | E9: WL
J10: Uncorrected | N10: PHRF | O10: Corrected
B11: Sail | C11: Yacht | D11: PHRF | E11: Finish Time | J11: Elapsed Time | N11: Allowance | O11: Time | T11: Remarks
B12: Number | C12: Name | D12: Rating | E12: (hr) | F12: (min) | G12: (sec) | J12: (hr) | K12: (min) | L12: (sec) | N12: (Sec) | O12: (Total Sec) | Q12: (hr) | R12: (min) | S12: (sec) | T12: (DNS/DNF)
A13: 1 | B13: =LOOKUP(C13, Boats!$A$3:B$47,Boats!B$3:B$47) ->  | D13: =IF(E$9="NS",LOOKUP(C13, Boats!$A$3:D$47,Boats!H$3:H$47),(IF(E$9="WL",LOOKUP(C13, Boats!$A$3:D$47,Boats!E$3:E$47),(IF(E$9="CR",LOOKUP(C13, Boats!$A$3:D$47,Boats!F$3:F$47)))))) ->  | E13: 23 | F13: 0 | G13: 0 | H13: =((E13*60*60+F13*60+G13)-(E$6*60*60+F$6*60+G$6)) -> 15900 | I13: =J13*60*60+K13*60 -> 15900 | J13: =ROUNDDOWN(H13/60/60, 0) -> 4 | K13: =ROUNDDOWN((H13 - (J13*60*60))/60, 0) -> 25 | L13: =H13-I13 -> 0 | N13: =D13*$E$8 ->  | O13: =((J13*60+K13)*60+L13)-N13 ->  | P13: =Q13*60*60+R13*60 ->  | Q13: =ROUNDDOWN(O13/60/60, 0) ->  | R13: =ROUNDDOWN((O13 - (Q13*60*60))/60, 0) ->  | S13: =O13-P13 -> 
A14: 2 | B14: =LOOKUP(C14, Boats!$A$3:B$47,Boats!B$3:B$47) ->  | D14: =IF(E$9="NS",LOOKUP(C14, Boats!$A$3:D$47,Boats!H$3:H$47),(IF(E$9="WL",LOOKUP(C14, Boats!$A$3:D$47,Boats!E$3:E$47),(IF(E$9="CR",LOOKUP(C14, Boats!$A$3:D$47,Boats!F$3:F$47)))))) ->  | E14: 23 | F14: 0 | G14: 0 | H14: =((E14*60*60+F14*60+G14)-(E$6*60*60+F$6*60+G$6)) -> 15900 | I14: =J14*60*60+K14*60 -> 15900 | J14: =ROUNDDOWN(H14/60/60, 0) -> 4 | K14: =ROUNDDOWN((H14 - (J14*60*60))/60, 0) -> 25 | L14: =H14-I14 -> 0 | N14: =D14*$E$8 ->  | O14: =((J14*60+K14)*60+L14)-N14 ->  | P14: =Q14*60*60+R14*60 ->  | Q14: =ROUNDDOWN(O14/60/60, 0) ->  | R14: =ROUNDDOWN((O14 - (Q14*60*60))/60, 0) ->  | S14: =O14-P14 -> 
A15: 3 | B15: =LOOKUP(C15, Boats!$A$3:B$47,Boats!B$3:B$47) ->  | D15: =IF(E$9="NS",LOOKUP(C15, Boats!$A$3:D$47,Boats!H$3:H$47),(IF(E$9="WL",LOOKUP(C15, Boats!$A$3:D$47,Boats!E$3:E$47),(IF(E$9="CR",LOOKUP(C15, Boats!$A$3:D$47,Boats!F$3:F$47)))))) ->  | E15: 23 | F15: 0 | G15: 0 | H15: =((E15*60*60+F15*60+G15)-(E$6*60*60+F$6*60+G$6)) -> 15900 | I15: =J15*60*60+K15*60 -> 15900 | J15: =ROUNDDOWN(H15/60/60, 0) -> 4 | K15: =ROUNDDOWN((H15 - (J15*60*60))/60, 0) -> 25 | L15: =H15-I15 -> 0 | N15: =D15*$E$8 ->  | O15: =((J15*60+K15)*60+L15)-N15 ->  | P15: =Q15*60*60+R15*60 ->  | Q15: =ROUNDDOWN(O15/60/60, 0) ->  | R15: =ROUNDDOWN((O15 - (Q15*60*60))/60, 0) ->  | S15: =O15-P15 -> 
A16: 4 | B16: =LOOKUP(C16, Boats!$A$3:B$47,Boats!B$3:B$47) ->  | D16: =IF(E$9="NS",LOOKUP(C16, Boats!$A$3:D$47,Boats!H$3:H$47),(IF(E$9="WL",LOOKUP(C16, Boats!$A$3:D$47,Boats!E$3:E$47),(IF(E$9="CR",LOOKUP(C16, Boats!$A$3:D$47,Boats!F$3:F$47)))))) ->  | E16: 23 | F16: 0 | G16: 0 | H16: =((E16*60*60+F16*60+G16)-(E$6*60*60+F$6*60+G$6)) -> 15900 | I16: =J16*60*60+K16*60 -> 15900 | J16: =ROUNDDOWN(H16/60/60, 0) -> 4 | K16: =ROUNDDOWN((H16 - (J16*60*60))/60, 0) -> 25 | L16: =H16-I16 -> 0 | N16: =D16*$E$8 ->  | O16: =((J16*60+K16)*60+L16)-N16 ->  | P16: =Q16*60*60+R16*60 ->  | Q16: =ROUNDDOWN(O16/60/60, 0) ->  | R16: =ROUNDDOWN((O16 - (Q16*60*60))/60, 0) ->  | S16: =O16-P16 -> 
A17: 5 | B17: =LOOKUP(C17, Boats!$A$3:B$47,Boats!B$3:B$47) ->  | D17: =IF(E$9="NS",LOOKUP(C17, Boats!$A$3:D$47,Boats!H$3:H$47),(IF(E$9="WL",LOOKUP(C17, Boats!$A$3:D$47,Boats!E$3:E$47),(IF(E$9="CR",LOOKUP(C17, Boats!$A$3:D$47,Boats!F$3:F$47)))))) ->  | E17: 23 | F17: 0 | G17: 0 | H17: =((E17*60*60+F17*60+G17)-(E$6*60*60+F$6*60+G$6)) -> 15900 | I17: =J17*60*60+K17*60 -> 15900 | J17: =ROUNDDOWN(H17/60/60, 0) -> 4 | K17: =ROUNDDOWN((H17 - (J17*60*60))/60, 0) -> 25 | L17: =H17-I17 -> 0 | N17: =D17*$E$8 ->  | O17: =((J17*60+K17)*60+L17)-N17 ->  | P17: =Q17*60*60+R17*60 ->  | Q17: =ROUNDDOWN(O17/60/60, 0) ->  | R17: =ROUNDDOWN((O17 - (Q17*60*60))/60, 0) ->  | S17: =O17-P17 -> 
A18: 6 | B18: =LOOKUP(C18, Boats!$A$3:B$47,Boats!B$3:B$47) ->  | D18: =IF(E$9="NS",LOOKUP(C18, Boats!$A$3:D$47,Boats!H$3:H$47),(IF(E$9="WL",LOOKUP(C18, Boats!$A$3:D$47,Boats!E$3:E$47),(IF(E$9="CR",LOOKUP(C18, Boats!$A$3:D$47,Boats!F$3:F$47)))))) ->  | E18: 23 | F18: 0 | G18: 0 | H18: =((E18*60*60+F18*60+G18)-(E$6*60*60+F$6*60+G$6)) -> 15900 | I18: =J18*60*60+K18*60 -> 15900 | J18: =ROUNDDOWN(H18/60/60, 0) -> 4 | K18: =ROUNDDOWN((H18 - (J18*60*60))/60, 0) -> 25 | L18: =H18-I18 -> 0 | N18: =D18*$E$8 ->  | O18: =((J18*60+K18)*60+L18)-N18 ->  | P18: =Q18*60*60+R18*60 ->  | Q18: =ROUNDDOWN(O18/60/60, 0) ->  | R18: =ROUNDDOWN((O18 - (Q18*60*60))/60, 0) ->  | S18: =O18-P18 -> 
A19: 7 | B19: =LOOKUP(C19, Boats!$A$3:B$47,Boats!B$3:B$47) ->  | D19: =IF(E$9="NS",LOOKUP(C19, Boats!$A$3:D$47,Boats!H$3:H$47),(IF(E$9="WL",LOOKUP(C19, Boats!$A$3:D$47,Boats!E$3:E$47),(IF(E$9="CR",LOOKUP(C19, Boats!$A$3:D$47,Boats!F$3:F$47)))))) ->  | E19: 23 | F19: 0 | G19: 0 | H19: =((E19*60*60+F19*60+G19)-(E$6*60*60+F$6*60+G$6)) -> 15900 | I19: =J19*60*60+K19*60 -> 15900 | J19: =ROUNDDOWN(H19/60/60, 0) -> 4 | K19: =ROUNDDOWN((H19 - (J19*60*60))/60, 0) -> 25 | L19: =H19-I19 -> 0 | N19: =D19*$E$8 ->  | O19: =((J19*60+K19)*60+L19)-N19 ->  | P19: =Q19*60*60+R19*60 ->  | Q19: =ROUNDDOWN(O19/60/60, 0) ->  | R19: =ROUNDDOWN((O19 - (Q19*60*60))/60, 0) ->  | S19: =O19-P19 -> 
A20: 8 | B20: =LOOKUP(C20, Boats!$A$3:B$47,Boats!B$3:B$47) ->  | D20: =IF(E$9="NS",LOOKUP(C20, Boats!$A$3:D$47,Boats!H$3:H$47),(IF(E$9="WL",LOOKUP(C20, Boats!$A$3:D$47,Boats!E$3:E$47),(IF(E$9="CR",LOOKUP(C20, Boats!$A$3:D$47,Boats!F$3:F$47)))))) ->  | E20: 23 | F20: 0 | G20: 0 | H20: =((E20*60*60+F20*60+G20)-(E$6*60*60+F$6*60+G$6)) -> 15900 | I20: =J20*60*60+K20*60 -> 15900 | J20: =ROUNDDOWN(H20/60/60, 0) -> 4 | K20: =ROUNDDOWN((H20 - (J20*60*60))/60, 0) -> 25 | L20: =H20-I20 -> 0 | N20: =D20*$E$8 ->  | O20: =((J20*60+K20)*60+L20)-N20 ->  | P20: =Q20*60*60+R20*60 ->  | Q20: =ROUNDDOWN(O20/60/60, 0) ->  | R20: =ROUNDDOWN((O20 - (Q20*60*60))/60, 0) ->  | S20: =O20-P20 -> 
A21: 9 | B21: =LOOKUP(C21, Boats!$A$3:B$47,Boats!B$3:B$47) ->  | D21: =IF(E$9="NS",LOOKUP(C21, Boats!$A$3:D$47,Boats!H$3:H$47),(IF(E$9="WL",LOOKUP(C21, Boats!$A$3:D$47,Boats!E$3:E$47),(IF(E$9="CR",LOOKUP(C21, Boats!$A$3:D$47,Boats!F$3:F$47)))))) ->  | E21: 23 | F21: 0 | G21: 0 | H21: =((E21*60*60+F21*60+G21)-(E$6*60*60+F$6*60+G$6)) -> 15900 | I21: =J21*60*60+K21*60 -> 15900 | J21: =ROUNDDOWN(H21/60/60, 0) -> 4 | K21: =ROUNDDOWN((H21 - (J21*60*60))/60, 0) -> 25 | L21: =H21-I21 -> 0 | N21: =D21*$E$8 ->  | O21: =((J21*60+K21)*60+L21)-N21 ->  | P21: =Q21*60*60+R21*60 ->  | Q21: =ROUNDDOWN(O21/60/60, 0) ->  | R21: =ROUNDDOWN((O21 - (Q21*60*60))/60, 0) ->  | S21: =O21-P21 -> 
A22: 10 | B22: =LOOKUP(C22, Boats!$A$3:B$47,Boats!B$3:B$47) ->  | D22: =IF(E$9="NS",LOOKUP(C22, Boats!$A$3:D$47,Boats!H$3:H$47),(IF(E$9="WL",LOOKUP(C22, Boats!$A$3:D$47,Boats!E$3:E$47),(IF(E$9="CR",LOOKUP(C22, Boats!$A$3:D$47,Boats!F$3:F$47)))))) ->  | E22: 23 | F22: 0 | G22: 0 | H22: =((E22*60*60+F22*60+G22)-(E$6*60*60+F$6*60+G$6)) -> 15900 | I22: =J22*60*60+K22*60 -> 15900 | J22: =ROUNDDOWN(H22/60/60, 0) -> 4 | K22: =ROUNDDOWN((H22 - (J22*60*60))/60, 0) -> 25 | L22: =H22-I22 -> 0 | N22: =D22*$E$8 ->  | O22: =((J22*60+K22)*60+L22)-N22 ->  | P22: =Q22*60*60+R22*60 ->  | Q22: =ROUNDDOWN(O22/60/60, 0) ->  | R22: =ROUNDDOWN((O22 - (Q22*60*60))/60, 0) ->  | S22: =O22-P22 -> 
A23: 11 | B23: =LOOKUP(C23, Boats!$A$3:B$47,Boats!B$3:B$47) ->  | D23: =IF(E$9="NS",LOOKUP(C23, Boats!$A$3:D$47,Boats!H$3:H$47),(IF(E$9="WL",LOOKUP(C23, Boats!$A$3:D$47,Boats!E$3:E$47),(IF(E$9="CR",LOOKUP(C23, Boats!$A$3:D$47,Boats!F$3:F$47)))))) ->  | E23: 23 | F23: 0 | G23: 0 | H23: =((E23*60*60+F23*60+G23)-(E$6*60*60+F$6*60+G$6)) -> 15900 | I23: =J23*60*60+K23*60 -> 15900 | J23: =ROUNDDOWN(H23/60/60, 0) -> 4 | K23: =ROUNDDOWN((H23 - (J23*60*60))/60, 0) -> 25 | L23: =H23-I23 -> 0 | N23: =D23*$E$8 ->  | O23: =((J23*60+K23)*60+L23)-N23 ->  | P23: =Q23*60*60+R23*60 ->  | Q23: =ROUNDDOWN(O23/60/60, 0) ->  | R23: =ROUNDDOWN((O23 - (Q23*60*60))/60, 0) ->  | S23: =O23-P23 -> 
A24: 12 | B24: =LOOKUP(C24, Boats!$A$3:B$47,Boats!B$3:B$47) ->  | D24: =IF(E$9="NS",LOOKUP(C24, Boats!$A$3:D$47,Boats!H$3:H$47),(IF(E$9="WL",LOOKUP(C24, Boats!$A$3:D$47,Boats!E$3:E$47),(IF(E$9="CR",LOOKUP(C24, Boats!$A$3:D$47,Boats!F$3:F$47)))))) ->  | E24: 23 | F24: 0 | G24: 0 | H24: =((E24*60*60+F24*60+G24)-(E$6*60*60+F$6*60+G$6)) -> 15900 | I24: =J24*60*60+K24*60 -> 15900 | J24: =ROUNDDOWN(H24/60/60, 0) -> 4 | K24: =ROUNDDOWN((H24 - (J24*60*60))/60, 0) -> 25 | L24: =H24-I24 -> 0 | N24: =D24*$E$8 ->  | O24: =((J24*60+K24)*60+L24)-N24 ->  | P24: =Q24*60*60+R24*60 ->  | Q24: =ROUNDDOWN(O24/60/60, 0) ->  | R24: =ROUNDDOWN((O24 - (Q24*60*60))/60, 0) ->  | S24: =O24-P24 -> 
A25: 13 | B25: =LOOKUP(C25, Boats!$A$3:B$47,Boats!B$3:B$47) ->  | D25: =IF(E$9="NS",LOOKUP(C25, Boats!$A$3:D$47,Boats!H$3:H$47),(IF(E$9="WL",LOOKUP(C25, Boats!$A$3:D$47,Boats!E$3:E$47),(IF(E$9="CR",LOOKUP(C25, Boats!$A$3:D$47,Boats!F$3:F$47)))))) ->  | E25: 23 | F25: 0 | G25: 0 | H25: =((E25*60*60+F25*60+G25)-(E$6*60*60+F$6*60+G$6)) -> 15900 | I25: =J25*60*60+K25*60 -> 15900 | J25: =ROUNDDOWN(H25/60/60, 0) -> 4 | K25: =ROUNDDOWN((H25 - (J25*60*60))/60, 0) -> 25 | L25: =H25-I25 -> 0 | N25: =D25*$E$8 ->  | O25: =((J25*60+K25)*60+L25)-N25 ->  | P25: =Q25*60*60+R25*60 ->  | Q25: =ROUNDDOWN(O25/60/60, 0) ->  | R25: =ROUNDDOWN((O25 - (Q25*60*60))/60, 0) ->  | S25: =O25-P25 -> 
A26: 14 | B26: =LOOKUP(C26, Boats!$A$3:B$47,Boats!B$3:B$47) ->  | D26: =IF(E$9="NS",LOOKUP(C26, Boats!$A$3:D$47,Boats!H$3:H$47),(IF(E$9="WL",LOOKUP(C26, Boats!$A$3:D$47,Boats!E$3:E$47),(IF(E$9="CR",LOOKUP(C26, Boats!$A$3:D$47,Boats!F$3:F$47)))))) ->  | E26: 23 | F26: 0 | G26: 0 | H26: =((E26*60*60+F26*60+G26)-(E$6*60*60+F$6*60+G$6)) -> 15900 | I26: =J26*60*60+K26*60 -> 15900 | J26: =ROUNDDOWN(H26/60/60, 0) -> 4 | K26: =ROUNDDOWN((H26 - (J26*60*60))/60, 0) -> 25 | L26: =H26-I26 -> 0 | N26: =D26*$E$8 ->  | O26: =((J26*60+K26)*60+L26)-N26 ->  | P26: =Q26*60*60+R26*60 ->  | Q26: =ROUNDDOWN(O26/60/60, 0) ->  | R26: =ROUNDDOWN((O26 - (Q26*60*60))/60, 0) ->  | S26: =O26-P26 -> 
A27: 15 | B27: =LOOKUP(C27, Boats!$A$3:B$47,Boats!B$3:B$47) ->  | D27: =IF(E$9="NS",LOOKUP(C27, Boats!$A$3:D$47,Boats!H$3:H$47),(IF(E$9="WL",LOOKUP(C27, Boats!$A$3:D$47,Boats!E$3:E$47),(IF(E$9="CR",LOOKUP(C27, Boats!$A$3:D$47,Boats!F$3:F$47)))))) ->  | E27: 23 | F27: 0 | G27: 0 | H27: =((E27*60*60+F27*60+G27)-(E$6*60*60+F$6*60+G$6)) -> 15900 | I27: =J27*60*60+K27*60 -> 15900 | J27: =ROUNDDOWN(H27/60/60, 0) -> 4 | K27: =ROUNDDOWN((H27 - (J27*60*60))/60, 0) -> 25 | L27: =H27-I27 -> 0 | N27: =D27*$E$8 ->  | O27: =((J27*60+K27)*60+L27)-N27 ->  | P27: =Q27*60*60+R27*60 ->  | Q27: =ROUNDDOWN(O27/60/60, 0) ->  | R27: =ROUNDDOWN((O27 - (Q27*60*60))/60, 0) ->  | S27: =O27-P27 -> 
A28: 16 | B28: =LOOKUP(C28, Boats!$A$3:B$47,Boats!B$3:B$47) ->  | D28: =IF(E$9="NS",LOOKUP(C28, Boats!$A$3:D$47,Boats!H$3:H$47),(IF(E$9="WL",LOOKUP(C28, Boats!$A$3:D$47,Boats!E$3:E$47),(IF(E$9="CR",LOOKUP(C28, Boats!$A$3:D$47,Boats!F$3:F$47)))))) ->  | E28: 23 | F28: 0 | G28: 0 | H28: =((E28*60*60+F28*60+G28)-(E$6*60*60+F$6*60+G$6)) -> 15900 | I28: =J28*60*60+K28*60 -> 15900 | J28: =ROUNDDOWN(H28/60/60, 0) -> 4 | K28: =ROUNDDOWN((H28 - (J28*60*60))/60, 0) -> 25 | L28: =H28-I28 -> 0 | N28: =D28*$E$8 ->  | O28: =((J28*60+K28)*60+L28)-N28 ->  | P28: =Q28*60*60+R28*60 ->  | Q28: =ROUNDDOWN(O28/60/60, 0) ->  | R28: =ROUNDDOWN((O28 - (Q28*60*60))/60, 0) ->  | S28: =O28-P28 -> 

Sheet Race A
A2: Race Name : ---> | D2: ='Race NS'!D2 -> Wednesday Night race - xx
A3: Committee Boat Name --> | D3: ='Race NS'!D3 -> 0
B4: Date --> | D4: ='Race NS'!D4 -> xx/xx/xx
B5: Conditions --> (optional) | D5: ='Race NS'!D5 -> 
B6: Spin 'A' - Start = | E6: 18 | F6: 40 | G6: 0
C7: Course = | E7: X | O7: Leave course blank if the same as prior section start
C8: Distance = | E8: =IF(ISBLANK(F7),'Race NS'!$E$8, VLOOKUP( E7,Course!$A$23:$T$41, LOOKUP(F7,Course!$A$2:$A$19,Course!$B$2:$B$19),FALSE))+IF(ISBLANK(G7), 0, VLOOKUP(F7,Course!$A$23:$T$41, LOOKUP(G7,Course!$A$2:$A$19,Course!$B$2:$B$19),FALSE))+IF(ISBLANK(J7), 0, VLOOKUP(G7,Course!$A$23:$T$41, LOOKUP(J7,Course!$A$2:$A$19,Course!$B$2:$B$19),FALSE))+IF(ISBLANK(K7), 0, VLOOKUP(J7,Course!$A$23:$T$41, LOOKUP(K7,Course!$A$2:$A$19,Course!$B$2:$B$19),FALSE))+IF(ISBLANK(L7), 0, VLOOKUP(K7,Course!$A$23:$T$41, LOOKUP(L7,Course!$A$2:$A$19,Course!$B$2:$B$19),FALSE))+IF(ISBLANK(M7), 0, VLOOKUP(L7,Course!$A$23:$T$41, LOOKUP(M7,Course!$A$2:$A$19,Course!$B$2:$B$19),FALSE)) -> 0
C9: PHRF Type = | E9: WL
J10: Uncorrected | N10: PHRF | O10: Corrected
B11: Sail | C11: Yacht | D11: PHRF | E11: Finish Time | J11: Elapsed Time | N11: Allowance | O11: Time | T11: Remarks
B12: Number | C12: Name | D12: Rating | E12: (hr) | F12: (min) | G12: (sec) | J12: (hr) | K12: (min) | L12: (sec) | N12: (Sec) | O12: (Total Sec) | Q12: (hr) | R12: (min) | S12: (sec) | T12: (DNS/DNF)
A13: 1 | B13: =LOOKUP(C13, Boats!$A$3:B$47,Boats!B$3:B$47) ->  | D13: =IF(E$9="NS",LOOKUP(C13, Boats!$A$3:D$47,Boats!H$3:H$47),(IF(E$9="WL",LOOKUP(C13, Boats!$A$3:D$47,Boats!E$3:E$47),(IF(E$9="CR",LOOKUP(C13, Boats!$A$3:D$47,Boats!F$3:F$47)))))) ->  | E13: 23 | F13: 0 | G13: 0 | H13: =((E13*60*60+F13*60+G13)-(E$6*60*60+F$6*60+G$6)) -> 15600 | I13: =J13*60*60+K13*60 -> 15600 | J13: =ROUNDDOWN(H13/60/60, 0) -> 4 | K13: =ROUNDDOWN((H13 - (J13*60*60))/60, 0) -> 20 | L13: =H13-I13 -> 0 | N13: =D13*$E$8 ->  | O13: =((J13*60+K13)*60+L13)-N13 ->  | P13: =Q13*60*60+R13*60 ->  | Q13: =ROUNDDOWN(O13/60/60, 0) ->  | R13: =ROUNDDOWN((O13 - (Q13*60*60))/60, 0) ->  | S13: =O13-P13 -> 
A14: 2 | B14: =LOOKUP(C14, Boats!$A$3:B$47,Boats!B$3:B$47) ->  | D14: =IF(E$9="NS",LOOKUP(C14, Boats!$A$3:D$47,Boats!H$3:H$47),(IF(E$9="WL",LOOKUP(C14, Boats!$A$3:D$47,Boats!E$3:E$47),(IF(E$9="CR",LOOKUP(C14, Boats!$A$3:D$47,Boats!F$3:F$47)))))) ->  | E14: 23 | F14: 0 | G14: 0 | H14: =((E14*60*60+F14*60+G14)-(E$6*60*60+F$6*60+G$6)) -> 15600 | I14: =J14*60*60+K14*60 -> 15600 | J14: =ROUNDDOWN(H14/60/60, 0) -> 4 | K14: =ROUNDDOWN((H14 - (J14*60*60))/60, 0) -> 20 | L14: =H14-I14 -> 0 | N14: =D14*$E$8 ->  | O14: =((J14*60+K14)*60+L14)-N14 ->  | P14: =Q14*60*60+R14*60 ->  | Q14: =ROUNDDOWN(O14/60/60, 0) ->  | R14: =ROUNDDOWN((O14 - (Q14*60*60))/60, 0) ->  | S14: =O14-P14 -> 
A15: 3 | B15: =LOOKUP(C15, Boats!$A$3:B$47,Boats!B$3:B$47) ->  | D15: =IF(E$9="NS",LOOKUP(C15, Boats!$A$3:D$47,Boats!H$3:H$47),(IF(E$9="WL",LOOKUP(C15, Boats!$A$3:D$47,Boats!E$3:E$47),(IF(E$9="CR",LOOKUP(C15, Boats!$A$3:D$47,Boats!F$3:F$47)))))) ->  | E15: 23 | F15: 0 | G15: 0 | H15: =((E15*60*60+F15*60+G15)-(E$6*60*60+F$6*60+G$6)) -> 15600 | I15: =J15*60*60+K15*60 -> 15600 | J15: =ROUNDDOWN(H15/60/60, 0) -> 4 | K15: =ROUNDDOWN((H15 - (J15*60*60))/60, 0) -> 20 | L15: =H15-I15 -> 0 | N15: =D15*$E$8 ->  | O15: =((J15*60+K15)*60+L15)-N15 ->  | P15: =Q15*60*60+R15*60 ->  | Q15: =ROUNDDOWN(O15/60/60, 0) ->  | R15: =ROUNDDOWN((O15 - (Q15*60*60))/60, 0) ->  | S15: =O15-P15 -> 
A16: 4 | B16: =LOOKUP(C16, Boats!$A$3:B$47,Boats!B$3:B$47) ->  | D16: =IF(E$9="NS",LOOKUP(C16, Boats!$A$3:D$47,Boats!H$3:H$47),(IF(E$9="WL",LOOKUP(C16, Boats!$A$3:D$47,Boats!E$3:E$47),(IF(E$9="CR",LOOKUP(C16, Boats!$A$3:D$47,Boats!F$3:F$47)))))) ->  | E16: 23 | F16: 0 | G16: 0 | H16: =((E16*60*60+F16*60+G16)-(E$6*60*60+F$6*60+G$6)) -> 15600 | I16: =J16*60*60+K16*60 -> 15600 | J16: =ROUNDDOWN(H16/60/60, 0) -> 4 | K16: =ROUNDDOWN((H16 - (J16*60*60))/60, 0) -> 20 | L16: =H16-I16 -> 0 | N16: =D16*$E$8 ->  | O16: =((J16*60+K16)*60+L16)-N16 ->  | P16: =Q16*60*60+R16*60 ->  | Q16: =ROUNDDOWN(O16/60/60, 0) ->  | R16: =ROUNDDOWN((O16 - (Q16*60*60))/60, 0) ->  | S16: =O16-P16 -> 
A17: 5 | B17: =LOOKUP(C17, Boats!$A$3:B$47,Boats!B$3:B$47) ->  | D17: =IF(E$9="NS",LOOKUP(C17, Boats!$A$3:D$47,Boats!H$3:H$47),(IF(E$9="WL",LOOKUP(C17, Boats!$A$3:D$47,Boats!E$3:E$47),(IF(E$9="CR",LOOKUP(C17, Boats!$A$3:D$47,Boats!F$3:F$47)))))) ->  | E17: 23 | F17: 0 | G17: 0 | H17: =((E17*60*60+F17*60+G17)-(E$6*60*60+F$6*60+G$6)) -> 15600 | I17: =J17*60*60+K17*60 -> 15600 | J17: =ROUNDDOWN(H17/60/60, 0) -> 4 | K17: =ROUNDDOWN((H17 - (J17*60*60))/60, 0) -> 20 | L17: =H17-I17 -> 0 | N17: =D17*$E$8 ->  | O17: =((J17*60+K17)*60+L17)-N17 ->  | P17: =Q17*60*60+R17*60 ->  | Q17: =ROUNDDOWN(O17/60/60, 0) ->  | R17: =ROUNDDOWN((O17 - (Q17*60*60))/60, 0) ->  | S17: =O17-P17 -> 
A18: 6 | B18: =LOOKUP(C18, Boats!$A$3:B$47,Boats!B$3:B$47) ->  | D18: =IF(E$9="NS",LOOKUP(C18, Boats!$A$3:D$47,Boats!H$3:H$47),(IF(E$9="WL",LOOKUP(C18, Boats!$A$3:D$47,Boats!E$3:E$47),(IF(E$9="CR",LOOKUP(C18, Boats!$A$3:D$47,Boats!F$3:F$47)))))) ->  | E18: 23 | F18: 0 | G18: 0 | H18: =((E18*60*60+F18*60+G18)-(E$6*60*60+F$6*60+G$6)) -> 15600 | I18: =J18*60*60+K18*60 -> 15600 | J18: =ROUNDDOWN(H18/60/60, 0) -> 4 | K18: =ROUNDDOWN((H18 - (J18*60*60))/60, 0) -> 20 | L18: =H18-I18 -> 0 | N18: =D18*$E$8 ->  | O18: =((J18*60+K18)*60+L18)-N18 ->  | P18: =Q18*60*60+R18*60 ->  | Q18: =ROUNDDOWN(O18/60/60, 0) ->  | R18: =ROUNDDOWN((O18 - (Q18*60*60))/60, 0) ->  | S18: =O18-P18 -> 
A19: 7 | B19: =LOOKUP(C19, Boats!$A$3:B$47,Boats!B$3:B$47) ->  | D19: =IF(E$9="NS",LOOKUP(C19, Boats!$A$3:D$47,Boats!H$3:H$47),(IF(E$9="WL",LOOKUP(C19, Boats!$A$3:D$47,Boats!E$3:E$47),(IF(E$9="CR",LOOKUP(C19, Boats!$A$3:D$47,Boats!F$3:F$47)))))) ->  | E19: 23 | F19: 0 | G19: 0 | H19: =((E19*60*60+F19*60+G19)-(E$6*60*60+F$6*60+G$6)) -> 15600 | I19: =J19*60*60+K19*60 -> 15600 | J19: =ROUNDDOWN(H19/60/60, 0) -> 4 | K19: =ROUNDDOWN((H19 - (J19*60*60))/60, 0) -> 20 | L19: =H19-I19 -> 0 | N19: =D19*$E$8 ->  | O19: =((J19*60+K19)*60+L19)-N19 ->  | P19: =Q19*60*60+R19*60 ->  | Q19: =ROUNDDOWN(O19/60/60, 0) ->  | R19: =ROUNDDOWN((O19 - (Q19*60*60))/60, 0) ->  | S19: =O19-P19 -> 
A20: 8 | B20: =LOOKUP(C20, Boats!$A$3:B$47,Boats!B$3:B$47) ->  | D20: =IF(E$9="NS",LOOKUP(C20, Boats!$A$3:D$47,Boats!H$3:H$47),(IF(E$9="WL",LOOKUP(C20, Boats!$A$3:D$47,Boats!E$3:E$47),(IF(E$9="CR",LOOKUP(C20, Boats!$A$3:D$47,Boats!F$3:F$47)))))) ->  | E20: 23 | F20: 0 | G20: 0 | H20: =((E20*60*60+F20*60+G20)-(E$6*60*60+F$6*60+G$6)) -> 15600 | I20: =J20*60*60+K20*60 -> 15600 | J20: =ROUNDDOWN(H20/60/60, 0) -> 4 | K20: =ROUNDDOWN((H20 - (J20*60*60))/60, 0) -> 20 | L20: =H20-I20 -> 0 | N20: =D20*$E$8 ->  | O20: =((J20*60+K20)*60+L20)-N20 ->  | P20: =Q20*60*60+R20*60 ->  | Q20: =ROUNDDOWN(O20/60/60, 0) ->  | R20: =ROUNDDOWN((O20 - (Q20*60*60))/60, 0) ->  | S20: =O20-P20 -> 
A21: 9 | B21: =LOOKUP(C21, Boats!$A$3:B$47,Boats!B$3:B$47) ->  | D21: =IF(E$9="NS",LOOKUP(C21, Boats!$A$3:D$47,Boats!H$3:H$47),(IF(E$9="WL",LOOKUP(C21, Boats!$A$3:D$47,Boats!E$3:E$47),(IF(E$9="CR",LOOKUP(C21, Boats!$A$3:D$47,Boats!F$3:F$47)))))) ->  | E21: 23 | F21: 0 | G21: 0 | H21: =((E21*60*60+F21*60+G21)-(E$6*60*60+F$6*60+G$6)) -> 15600 | I21: =J21*60*60+K21*60 -> 15600 | J21: =ROUNDDOWN(H21/60/60, 0) -> 4 | K21: =ROUNDDOWN((H21 - (J21*60*60))/60, 0) -> 20 | L21: =H21-I21 -> 0 | N21: =D21*$E$8 ->  | O21: =((J21*60+K21)*60+L21)-N21 ->  | P21: =Q21*60*60+R21*60 ->  | Q21: =ROUNDDOWN(O21/60/60, 0) ->  | R21: =ROUNDDOWN((O21 - (Q21*60*60))/60, 0) ->  | S21: =O21-P21 -> 
A22: 10 | B22: =LOOKUP(C22, Boats!$A$3:B$47,Boats!B$3:B$47) ->  | D22: =IF(E$9="NS",LOOKUP(C22, Boats!$A$3:D$47,Boats!H$3:H$47),(IF(E$9="WL",LOOKUP(C22, Boats!$A$3:D$47,Boats!E$3:E$47),(IF(E$9="CR",LOOKUP(C22, Boats!$A$3:D$47,Boats!F$3:F$47)))))) ->  | E22: 23 | F22: 0 | G22: 0 | H22: =((E22*60*60+F22*60+G22)-(E$6*60*60+F$6*60+G$6)) -> 15600 | I22: =J22*60*60+K22*60 -> 15600 | J22: =ROUNDDOWN(H22/60/60, 0) -> 4 | K22: =ROUNDDOWN((H22 - (J22*60*60))/60, 0) -> 20 | L22: =H22-I22 -> 0 | N22: =D22*$E$8 ->  | O22: =((J22*60+K22)*60+L22)-N22 ->  | P22: =Q22*60*60+R22*60 ->  | Q22: =ROUNDDOWN(O22/60/60, 0) ->  | R22: =ROUNDDOWN((O22 - (Q22*60*60))/60, 0) ->  | S22: =O22-P22 -> 
A23: 11 | B23: =LOOKUP(C23, Boats!$A$3:B$47,Boats!B$3:B$47) ->  | D23: =IF(E$9="NS",LOOKUP(C23, Boats!$A$3:D$47,Boats!H$3:H$47),(IF(E$9="WL",LOOKUP(C23, Boats!$A$3:D$47,Boats!E$3:E$47),(IF(E$9="CR",LOOKUP(C23, Boats!$A$3:D$47,Boats!F$3:F$47)))))) ->  | E23: 23 | F23: 0 | G23: 0 | H23: =((E23*60*60+F23*60+G23)-(E$6*60*60+F$6*60+G$6)) -> 15600 | I23: =J23*60*60+K23*60 -> 15600 | J23: =ROUNDDOWN(H23/60/60, 0) -> 4 | K23: =ROUNDDOWN((H23 - (J23*60*60))/60, 0) -> 20 | L23: =H23-I23 -> 0 | N23: =D23*$E$8 ->  | O23: =((J23*60+K23)*60+L23)-N23 ->  | P23: =Q23*60*60+R23*60 ->  | Q23: =ROUNDDOWN(O23/60/60, 0) ->  | R23: =ROUNDDOWN((O23 - (Q23*60*60))/60, 0) ->  | S23: =O23-P23 -> 
A24: 12 | B24: =LOOKUP(C24, Boats!$A$3:B$47,Boats!B$3:B$47) ->  | D24: =IF(E$9="NS",LOOKUP(C24, Boats!$A$3:D$47,Boats!H$3:H$47),(IF(E$9="WL",LOOKUP(C24, Boats!$A$3:D$47,Boats!E$3:E$47),(IF(E$9="CR",LOOKUP(C24, Boats!$A$3:D$47,Boats!F$3:F$47)))))) ->  | E24: 23 | F24: 0 | G24: 0 | H24: =((E24*60*60+F24*60+G24)-(E$6*60*60+F$6*60+G$6)) -> 15600 | I24: =J24*60*60+K24*60 -> 15600 | J24: =ROUNDDOWN(H24/60/60, 0) -> 4 | K24: =ROUNDDOWN((H24 - (J24*60*60))/60, 0) -> 20 | L24: =H24-I24 -> 0 | N24: =D24*$E$8 ->  | O24: =((J24*60+K24)*60+L24)-N24 ->  | P24: =Q24*60*60+R24*60 ->  | Q24: =ROUNDDOWN(O24/60/60, 0) ->  | R24: =ROUNDDOWN((O24 - (Q24*60*60))/60, 0) ->  | S24: =O24-P24 -> 
A25: 13 | B25: =LOOKUP(C25, Boats!$A$3:B$47,Boats!B$3:B$47) ->  | D25: =IF(E$9="NS",LOOKUP(C25, Boats!$A$3:D$47,Boats!H$3:H$47),(IF(E$9="WL",LOOKUP(C25, Boats!$A$3:D$47,Boats!E$3:E$47),(IF(E$9="CR",LOOKUP(C25, Boats!$A$3:D$47,Boats!F$3:F$47)))))) ->  | E25: 23 | F25: 0 | G25: 0 | H25: =((E25*60*60+F25*60+G25)-(E$6*60*60+F$6*60+G$6)) -> 15600 | I25: =J25*60*60+K25*60 -> 15600 | J25: =ROUNDDOWN(H25/60/60, 0) -> 4 | K25: =ROUNDDOWN((H25 - (J25*60*60))/60, 0) -> 20 | L25: =H25-I25 -> 0 | N25: =D25*$E$8 ->  | O25: =((J25*60+K25)*60+L25)-N25 ->  | P25: =Q25*60*60+R25*60 ->  | Q25: =ROUNDDOWN(O25/60/60, 0) ->  | R25: =ROUNDDOWN((O25 - (Q25*60*60))/60, 0) ->  | S25: =O25-P25 -> 
A26: 14 | B26: =LOOKUP(C26, Boats!$A$3:B$47,Boats!B$3:B$47) ->  | D26: =IF(E$9="NS",LOOKUP(C26, Boats!$A$3:D$47,Boats!H$3:H$47),(IF(E$9="WL",LOOKUP(C26, Boats!$A$3:D$47,Boats!E$3:E$47),(IF(E$9="CR",LOOKUP(C26, Boats!$A$3:D$47,Boats!F$3:F$47)))))) ->  | E26: 23 | F26: 0 | G26: 0 | H26: =((E26*60*60+F26*60+G26)-(E$6*60*60+F$6*60+G$6)) -> 15600 | I26: =J26*60*60+K26*60 -> 15600 | J26: =ROUNDDOWN(H26/60/60, 0) -> 4 | K26: =ROUNDDOWN((H26 - (J26*60*60))/60, 0) -> 20 | L26: =H26-I26 -> 0 | N26: =D26*$E$8 ->  | O26: =((J26*60+K26)*60+L26)-N26 ->  | P26: =Q26*60*60+R26*60 ->  | Q26: =ROUNDDOWN(O26/60/60, 0) ->  | R26: =ROUNDDOWN((O26 - (Q26*60*60))/60, 0) ->  | S26: =O26-P26 -> 
A27: 15 | B27: =LOOKUP(C27, Boats!$A$3:B$47,Boats!B$3:B$47) ->  | D27: =IF(E$9="NS",LOOKUP(C27, Boats!$A$3:D$47,Boats!H$3:H$47),(IF(E$9="WL",LOOKUP(C27, Boats!$A$3:D$47,Boats!E$3:E$47),(IF(E$9="CR",LOOKUP(C27, Boats!$A$3:D$47,Boats!F$3:F$47)))))) ->  | E27: 23 | F27: 0 | G27: 0 | H27: =((E27*60*60+F27*60+G27)-(E$6*60*60+F$6*60+G$6)) -> 15600 | I27: =J27*60*60+K27*60 -> 15600 | J27: =ROUNDDOWN(H27/60/60, 0) -> 4 | K27: =ROUNDDOWN((H27 - (J27*60*60))/60, 0) -> 20 | L27: =H27-I27 -> 0 | N27: =D27*$E$8 ->  | O27: =((J27*60+K27)*60+L27)-N27 ->  | P27: =Q27*60*60+R27*60 ->  | Q27: =ROUNDDOWN(O27/60/60, 0) ->  | R27: =ROUNDDOWN((O27 - (Q27*60*60))/60, 0) ->  | S27: =O27-P27 -> 
A28: 16 | B28: =LOOKUP(C28, Boats!$A$3:B$47,Boats!B$3:B$47) ->  | D28: =IF(E$9="NS",LOOKUP(C28, Boats!$A$3:D$47,Boats!H$3:H$47),(IF(E$9="WL",LOOKUP(C28, Boats!$A$3:D$47,Boats!E$3:E$47),(IF(E$9="CR",LOOKUP(C28, Boats!$A$3:D$47,Boats!F$3:F$47)))))) ->  | E28: 23 | F28: 0 | G28: 0 | H28: =((E28*60*60+F28*60+G28)-(E$6*60*60+F$6*60+G$6)) -> 15600 | I28: =J28*60*60+K28*60 -> 15600 | J28: =ROUNDDOWN(H28/60/60, 0) -> 4 | K28: =ROUNDDOWN((H28 - (J28*60*60))/60, 0) -> 20 | L28: =H28-I28 -> 0 | N28: =D28*$E$8 ->  | O28: =((J28*60+K28)*60+L28)-N28 ->  | P28: =Q28*60*60+R28*60 ->  | Q28: =ROUNDDOWN(O28/60/60, 0) ->  | R28: =ROUNDDOWN((O28 - (Q28*60*60))/60, 0) ->  | S28: =O28-P28 -> 

Sheet Boats
B1: N | E1: PHRF
A2: Boat | B2: SailNo | C2: Owner | D2: email | E2: Spin - WL | F2: Spin - CR | G2: NonSpin-WL | H2: NonSpin-CR | I2: Race Fee | J2: Spinclass | K2: I | L2: J | M2: P | N2: E | O2: LOA | P2: LWL | Q2: Disp | R2: UpSAD | S2: DWSAD | T2: DLWL
U3: =SUM(U4:U40) -> 23
A4: American Flyer | B4: 39519 | C4: Dan Schneider | D4: dc_schneider@msn.com | E4: 36 | F4: 36 | G4: 42 | H4: 42 | I4: no | J4: A | K4: 51.25 | L4: 14.04 | M4: 50.45 | N4: 18.47 | O4: 39.4 | P4: 34.12 | Q4: 13000 | R4: 29.96 | S4: 63.34 | T4: 146.1060725 | V4: American Flyer
A5: Arctic Tern | B5: 93642 | C5: PAX | E5: 168 | F5: 168 | G5: 168 | H5: 168 | I5: yes | J5: C | U5: 1
A6: Bad Cat | B6: 063 | C6: Jim Whited | D6: jimw625@comcast.net | E6: 39 | F6: 33 | G6: 48 | H6: 48 | I6: yes | J6: A | K6: 48.36 | L6: 13.84 | M6: 45.17 | N6: 45.17 | O6: 36.5 | P6: 32.7 | Q6: 9300 | R6: 23.92 | S6: 70.47 | T6: 118.74 | U6: 1
A7: Badger | B7: 144 | C7: Carl Feusaherns | D7: feus@comcast.net | E7: 177 | F7: 177 | G7: 177 | H7: 177 | I7: yes | J7: C | K7: 30.5 | L7: 9.5 | M7: 29.42 | N7: 12.29 | O7: 25.9 | P7: 21.7 | Q7: 4250 | R7: 19.83 | S7: 41.94 | T7: 185.68 | U7: 1
A8: Blue Boat Home | B8: 4856 | C8: Lowell Martin | E8: 231 | F8: 231 | G8: 231 | H8: 231 | I8: yes | J8: C | K8: 34 | L8: 11.25 | M8: 28.67 | N8: 10.5 | O8: 26.8 | P8: 21.8 | Q8: 6850 | R8: 15.14 | S8: 35.43 | T8: 295.17 | U8: 1
A9: Blue Goose | B9: 93643 | C9: PAX | E9: 168 | F9: 168 | G9: 168 | H9: 168 | I9: no | J9: C
A10: Cheetah | B10: 50473 | C10: Marc Briere | D10: race@smsa.com | E10: 36 | F10: 30 | G10: 45 | H10: 45 | I10: yes | J10: A | K10: 43.7 | L10: 12.6 | M10: 44.7 | N10: 16.5 | O10: 35.86 | P10: 31.76 | Q10: 8150 | R10: 25.41 | S10: 73.32 | T10: 113.14 | U10: 1
A11: Easy Button | B11: 93084 | C11: David Meiser | D11: meiser@comcast.net | E11: 159 | F11: 162 | G11: 159 | H11: 159 | I11: yes | J11: C | K11: 27.75 | L11: 8.25 | M11: 29.75 | N11: 11.72 | O11: 25.7 | P11: 20 | Q11: 2600 | R11: 24.41 | S11: 49.25 | T11: 145.0892857 | U11: 1
A12: Elan | B12: 43162 | C12: Gary Shaw | D12: garyshaw75@aol.com | E12: 153 | F12: 153 | G12: 153 | H12: 153 | I12: yes | J12: C | K12: 49.5 | L12: 15.33 | M12: 42 | N12: 11 | O12: 36.83 | P12: 29.5 | Q12: 13500 | R12: 18.71 | S12: 39.33 | T12: 234.7576223 | U12: 1
A13: Flyer | B13: 25126 | C13: Michael Major | D13: mjamesmajor@gmail.com | E13: 111 | F13: 111 | G13: 114 | H13: 114 | I13: no | J13: B | K13: 40.18 | L13: 11.65 | M13: 42.27 | N13: 15.79 | O13: 34.4 | P13: 27.2 | Q13: 8825 | R13: 21.24 | S13: 39.65 | T13: 195.78
A14: J Ray | B14: USA47 | C14: Larry Ray | D14: mlray@gmail.com | E14: 114 | F14: 111 | G14: 120 | H14: 120 | I14: yes | J14: B | K14: 26.77 | L14: 7.68 | M14: 26.16 | N14: 9.44 | O14: 22.8 | P14: 20.5 | Q14: 1750 | R14: 29.6 | S14: 43 | T14: 90.68 | U14: 1
A15: Juggernaut | B15: 51277 | C15: David Ahearn | E15: 39 | F15: 39 | G15: 39 | H15: 39 | I15: no | J15: A | K15: 50.82 | L15: 14.7 | M15: 51.75 | N15: 16.5 | O15: 37.7 | P15: 34.2 | Q15: 11400 | R15: 25.24 | S15: 71.02 | T15: 127.23
A16: Kraken | B16: 43289 | C16: Scott Roland | E16: 180 | F16: 180 | G16: 180 | H16: 180 | I16: yes | J16: C | K16: 26.75 | L16: 9 | M16: 30.25 | N16: 11.25 | O16: 25.2 | P16: 20.9 | Q16: 3150 | R16: 21.6 | S16: 41.93 | T16: 154.04 | U16: 1
A17: Krugerrand | B17: 53477 | C17: Sarah Southworth | D17: write2ss@cs.com | E17: 132 | F17: 132 | G17: 132 | H17: 132 | I17: yes | J17: B | K17: 48.42 | L17: 14.33 | M17: 42.33 | N17: 13 | O17: 36.17 | P17: 29.42 | Q17: 15300 | R17: 17.77 | S17: 35.47 | T17: =((Q17/(2240*POWER((P17/100),3)))) -> 268.2349767 | U17: 1
A18: Lickety Split | B18: 43067 | C18: Donna Maneely | D18: damaneely@verizon.net | E18: 168 | F18: 168 | G18: 168 | H18: 168 | I18: yes | J18: C | K18: 40.86 | L18: 13 | M18: 35.36 | N18: 11.79 | O18: 31.71 | P18: 25 | Q18: 9400 | R18: 18.73 | S18: 33.7 | T18: 268.5714286 | U18: 1
A19: Natural Disaster | B19: 63243 | C19: Thomas Moulds | D19: tmoulds@dtiweb.net | E19: 114 | F19: 114 | G19: 114 | H19: 114 | I19: yes | J19: B | K19: 36 | L19: 11.75 | M19: 31.5 | N19: 10.75 | O19: 30 | P19: 27.5 | Q19: 3600 | R19: 28.56 | S19: 57.33 | T19: =((Q19/(2240*POWER((P19/100),3)))) -> 77.27809381 | U19: 1
A20: Pony Express | B20: 50588 | C20: Jimmy Yurko | D20: jimmydyurko@gmail.com | E20: 132 | F20: 129 | G20: 138 | H20: 138 | I20: yes | J20: B | K20: 28 | L20: 8.5 | M20: 28 | N20: 11 | O20: 25 | P20: 21.3 | Q20: 2000 | R20: 27.49 | S20: 61.72 | T20: 92.39 | U20: 1
A21: Pursuit | B21: 23798 | C21: Norm Dawley | D21: normdawley@norms-site.com | E21: 51 | F21: 45 | G21: 66 | H21: 66 | I21: yes | J21: A | K21: 52 | L21: 16 | M21: 55 | N21: 18 | O21: 47.67 | P21: 37.17 | Q21: 18689 | R21: 20.66 | S21: 49.83 | T21: 162.07 | U21: 1
A22: Rakali | B22: USAxxx | C22: Mark Witte | D22: mcwitte@md.metrocast.net | E22: 90 | F22: 90 | G22: 96 | H22: 96 | I22: yes | J22: A | K22: 40.6 | L22: 13.5 | M22: 41.5 | N22: 14.6 | O22: 34.5 | P22: 29.5 | Q22: 7750 | R22: 23.54 | S22: 51.36 | T22: 134.77 | U22: 1
A23: Shamal | B23: 23827 | C23: Jeff Carlsen | E23: 174 | F23: 174 | G23: 174 | H23: 174 | I23: yes | J23: C | K23: 30.75 | L23: 9.83 | M23: 26.5 | N23: 9.5 | O23: 24.58 | P23: 19.17 | Q23: 2950 | R23: 23.78 | S23: 46.61 | T23: 187 | U23: 1
A24: Shermax | B24: 2276 | C24: Max Munger | D24: maxmunger@verizon.net | E24: 177 | F24: 177 | G24: 177 | H24: 177 | I24: no | J24: C | K24: 43 | L24: 13.16 | M24: 37.5 | N24: 12 | O24: 29.91 | P24: 25 | Q24: 10200 | R24: 19.02 | S24: 37.85 | T24: 291.4285714
A25: Short Bus | B25: 71221 | C25: Hawk Caldwell | D25: hawkcaldwell@gmail.com | E25: 45 | F25: 36 | G25: 54 | H25: 54 | I25: yes | J25: A | K25: 36.71 | L25: 10.99 | M25: 38.63 | N25: 14.38 | O25: 30.8 | P25: 28.3 | Q25: 4028 | R25: 36.86 | S25: 92.16 | T25: 79.34 | U25: 1
A26: Spinnster | B26: 161 | C26: Betsy Dodge | D26: bdodge33@comcast.net | E26: 171 | F26: 171 | G26: 171 | H26: 171 | I26: yes | J26: C | K26: 30.5 | L26: 9.5 | M26: 29.5 | N26: 12.25 | O26: 25.92 | P26: 21.67 | Q26: 4250 | R26: 22.36 | S26: 39.88 | T26: 186.4507685 | U26: 1
A27: Splash | B27: USA xxx | C27: Tom Attick | D27: tattick@chattick.com | E27: 90 | F27: 90 | G27: 96 | H27: 96 | I27: yes | J27: A | K27: 40.6 | L27: 13.5 | M27: 41.5 | N27: 14.6 | O27: 34.5 | P27: 29.5 | Q27: 7750 | R27: 23.54 | S27: 51.36 | T27: 134.77 | U27: 1
A28: Stingray | B28: 63383 | C28: Elliot Peterson | D28: tepeterson@dcscorp.com | E28: 129 | F28: 129 | G28: 129 | H28: 129 | I28: yes | J28: B | K28: 38 | L28: 10.95 | M28: 32.4 | N28: 12 | O28: 27.9 | P28: 23.8 | Q28: 5100 | R28: 24.12 | S28: 45.56 | T28: 168.885081 | U28: 1
A29: Stormy Petrel | B29: 93644 | C29: PAX | E29: 168 | F29: 168 | G29: 168 | H29: 168 | I29: no | J29: C
A30: Supra Turbo | B30: 2610 | C30: Peter D'Arista | D30: peterd@toyotamd.com | E30: 78 | F30: 78 | G30: 87 | H30: 87 | I30: Yes | J30: A | K30: 30.3 | L30: 9.6 | M30: 33 | N30: 12.8 | O30: 26 | P30: 24.7 | Q30: 2447 | R30: 31.39 | S30: 99.92 | T30: 72.49 | U30: 1
A31: The Doghouse | B31: 63199 | C31: Dan Shannon | D31: shannon63199@verizon.net | E31: 111 | F31: 111 | G31: 111 | H31: 111 | I31: yes | J31: B | K31: 40 | L31: 12 | M31: 35 | N31: 12 | O31: 29.5 | P31: 25 | Q31: 6000 | R31: 24.12 | S31: 47.08 | T31: =((Q31/(2240*POWER((P31/100),3)))) -> 171.4285714 | U31: 1
A32: Triton's Fury | B32: 499 | C32: T. J. O'Farrell | D32: triton499@gmail.com | E32: 252 | F32: 252 | G32: 252 | H32: 252 | I32: no | J32: C | K32: 31 | L32: 10 | M32: 32.98 | N32: 12.83 | O32: 28.5 | P32: 20.5 | Q32: 8200 | R32: 14.4 | S32: 26.05 | T32: 424.92
A33: Wicked Good | B33: 93121 | C33: Mark Gyorgy | D33: mygorgy@dscorp.com | E33: 132 | F33: 132 | G33: 132 | H33: 132 | I33: yes | J33: B | K33: 35.25 | L33: 10.2 | M33: 37.2 | N33: 12 | O33: 26.83 | P33: 23.42 | Q33: 3800 | R33: 29.81 | S33: 51.7 | T33: 132.0610987 | U33: 1
A34: Wild Thing | B34: 87638 | C34: Jimmy Yurko | D34: jimmydyurko@yahoo.com | E34: 186 | F34: 186 | G34: 186 | H34: 186 | I34: no | J34: C | K34: 22.6 | L34: 7.25 | M34: 24.04 | N34: 9.33 | O34: 20.33 | P34: 18.42 | Q34: 1160 | R34: 28.1 | S34: 58.28 | T34: 83.13
A56: Old Boat Data:
A57: American Flyer | B57: 39519 | C57: Dan Schneider | D57: dc_schneider@msn.com | E57: 36 | F57: 36 | G57: 42 | H57: 42 | I57: yes | J57: A | K57: 51.25 | L57: 14.04 | M57: 50.45 | N57: 18.47 | O57: 39.4 | P57: 34.12 | Q57: 13000 | R57: 29.96 | S57: 63.34 | T57: 146.1060725 | U57: 1
A58: Antagonist | B58: 217 | C58: Eddie Sierra/Scott Roland | D58: ed.sierra347@gmail.com | E58: 114 | F58: 111 | G58: 120 | H58: 120 | I58: yes | J58: B | K58: 26.77 | L58: 7.68 | M58: 26.16 | N58: 9.44 | O58: 22.8 | P58: 20.5 | Q58: 1750 | R58: 29.6 | S58: 43 | T58: 90.68 | U58: 1
A59: Arctic Tern | B59: 93642 | C59: PAX | E59: 168 | F59: 168 | G59: 168 | H59: 168 | I59: no | J59: C
A60: Audrey | B60: 764 | C60: Trevor Harney | D60: Trevor.Harney@atkinsglobal.com | E60: 174 | F60: 174 | G60: 174 | H60: 174 | I60: no | J60: C
A61: Bad Cat | B61: 063 | C61: Jim Whited | D61: jimw625@comcast.net | E61: 39 | F61: 33 | G61: 48 | H61: 48 | I61: yes | J61: A | K61: 48.36 | L61: 13.84 | M61: 45.17 | N61: 45.17 | O61: 36.5 | P61: 32.7 | Q61: 9300 | R61: 26.65 | S61: 73.27 | T61: 119 | U61: 1
A62: Badger | B62: 144 | C62: Carl Feusaherns | D62: feus@comcast.net | E62: 177 | F62: 177 | G62: 177 | H62: 177 | I62: yes | J62: C | K62: 28.75 | L62: 9.66 | M62: 28 | N62: 9.75 | O62: 24.5 | P62: 20.5 | Q62: 2900 | R62: 24.11 | S62: 46.03 | T62: 150.2755743 | U62: 1
A63: Blue Goose | B63: 93643 | C63: PAX | E63: 168 | F63: 168 | G63: 168 | H63: 168 | I63: no | J63: C
A64: Cheetah | B64: 50473 | C64: Marc Briere | D64: race@smsa.com | E64: 36 | F64: 36 | G64: 45 | H64: 45 | I64: yes | J64: A | K64: 43.7 | L64: 12.6 | M64: 44.7 | N64: 16.5 | O64: 35.86 | P64: 31.76 | Q64: 8150 | R64: 28.76 | S64: 70.08 | T64: 114 | U64: 1
A65: Deju Vue | B65: 41299 | C65: Douglas Aulson | E65: 147 | F65: 147 | G65: 147 | H65: 147 | I65: yes | J65: B
A66: Easy Button | B66: 93084 | C66: David Meiser | D66: meiser@comcast.net | E66: 159 | F66: 159 | G66: 159 | H66: 159 | I66: yes | J66: C | K66: 27.75 | L66: 8.25 | M66: 29.75 | N66: 11.72 | O66: 25.7 | P66: 20 | Q66: 2600 | R66: 27.79 | S66: 46.9 | T66: 145.0892857 | U66: 1
A67: Elan | B67: 43162 | C67: Gary Shaw | D67: garyshaw75@aol.com | E67: 153 | F67: 153 | G67: 153 | H67: 153 | I67: yes | J67: C | K67: 49.5 | L67: 15.33 | M67: 42 | N67: 11 | O67: 36.83 | P67: 29.5 | Q67: 13500 | R67: 18.71 | S67: 39.33 | T67: 234.7576223 | U67: 1
A68: Flyer | B68: 25126 | C68: Michael Major | D68: mjamesmajor@gmail.com | E68: 111 | F68: 111 | G68: 114 | H68: 114 | I68: yes | J68: B | K68: 40.18 | L68: 11.65 | M68: 42.27 | N68: 15.79 | O68: 34.4 | P68: 27.2 | Q68: 8825 | R68: 21.24 | S68: 39.65 | T68: 195.78 | U68: 1
A69: Gift Horse | B69: 87012 | C69: Jimmy Yurko | D69: jimmydyurko@gmail.com | E69: 111 | F69: 111 | G69: 111 | H69: 111 | I69: yes | J69: B | U69: 1
A70: J Ray | B70: USA47 | C70: Larry Ray | D70: mlray@gmail.com | E70: 114 | F70: 114 | G70: 120 | H70: 120 | I70: yes | J70: B | K70: 26.77 | L70: 7.68 | M70: 26.16 | N70: 9.44 | O70: 22.8 | P70: 20.5 | Q70: 1750 | R70: 29.6 | S70: 43 | T70: 90.68 | U70: 1
A71: Krugerrand | B71: 53477 | C71: Sarah Southworth | D71: write2ss@cs.com | E71: 132 | F71: 132 | G71: 132 | H71: 132 | I71: yes | J71: B | K71: 48.42 | L71: 14.33 | M71: 42.33 | N71: 13 | O71: 36.17 | P71: 29.42 | Q71: 15300 | R71: 17.77 | S71: 35.47 | T71: =((Q71/(2240*POWER((P71/100),3)))) -> 268.2349767 | U71: 1
A72: Lakahi | B72: 25260 | C72: Jim Young | D72: youngjw1203@earthlink.net | E72: 72 | F72: 72 | G72: 72 | H72: 72 | I72: no | J72: A | K72: 48 | L72: 14.25 | M72: 47 | N72: 14.58 | O72: 35.42 | P72: 30 | Q72: 9800 | R72: 26.64 | S72: 50.21 | T72: 162.037037
A73: Lickety Split | B73: 43067 | C73: Donna Maneely | D73: damaneely@verizon.net | E73: 168 | F73: 168 | G73: 168 | H73: 168 | I73: yes | J73: C | K73: 40.86 | L73: 13 | M73: 35.36 | N73: 11.79 | O73: 31.71 | P73: 25 | Q73: 9400 | R73: 18.73 | S73: 33.7 | T73: 268.5714286
A74: Natural Disaster | B74: 63243 | C74: Thomas Moulds | D74: tmoulds@dtiweb.net | E74: 114 | F74: 114 | G74: 114 | H74: 114 | I74: yes | J74: B | K74: 36 | L74: 11.75 | M74: 31.5 | N74: 10.75 | O74: 30 | P74: 27.5 | Q74: 3600 | R74: 28.56 | S74: 57.33 | T74: =((Q74/(2240*POWER((P74/100),3)))) -> 77.27809381 | U74: 1
A75: Pony Express | B75: 50588 | C75: Jimmy Yurko | D75: jimmydyurko@gmail.com | E75: 132 | F75: 129 | G75: 138 | H75: 138 | I75: yes | J75: B | K75: 28 | L75: 8.5 | M75: 28 | N75: 11 | O75: 25 | P75: 21.3 | Q75: 2000 | R75: 27.49 | S75: 61.72 | T75: 92.39 | U75: 1
A76: Pursuit | B76: 23798 | C76: Norm Dawley | D76: normdawley@norms-site.com | E76: 51 | F76: 45 | G76: 66 | H76: 66 | I76: yes | J76: A | K76: 52 | L76: 16 | M76: 55 | N76: 18 | O76: 47.67 | P76: 37.17 | Q76: 18689 | R76: 23.26 | S76: 45.15 | T76: 162.4652048 | U76: 1
A77: Rakali | B77: USAxxx | C77: Mark Witte | D77: mcwitte@md.metrocast.net | E77: 90 | F77: 90 | G77: 96 | H77: 96 | I77: yes | J77: A
A78: Rhumb Punch | B78: 26007 | C78: John Edwards | D78: rhumbpunch@msn.com | E78: 81 | F78: 81 | G78: 90 | H78: 90 | I78: yes | J78: A
A79: Shamal | B79: 23827 | C79: Jeff Carlsen | E79: 174 | F79: 174 | G79: 174 | H79: 174 | I79: yes | J79: C | K79: 30.75 | L79: 9.83 | M79: 26.5 | N79: 9.5 | O79: 24.58 | P79: 19.17 | Q79: 2950 | R79: 23.78 | S79: 46.61 | T79: 187 | U79: 1
A80: Shermax | B80: 2276 | C80: Max Munger | D80: maxmunger@verizon.net | E80: 177 | F80: 177 | G80: 177 | H80: 177 | I80: yes | J80: C | K80: 43 | L80: 13.16 | M80: 37.5 | N80: 12 | O80: 29.91 | P80: 25 | Q80: 10200 | R80: 19.02 | S80: 37.85 | T80: 291.4285714 | U80: 1
A81: Short Bus | B81: 71221 | C81: Hawk Caldwell | D81: hawkcaldwell@gmail.com | E81: 42 | F81: 42 | G81: 51 | H81: 51 | I81: yes | J81: A | U81: 1
A82: Spinnster | B82: 161 | C82: Betsy Dodge | D82: bdodge33@comcast.net | E82: 171 | F82: 171 | G82: 171 | H82: 171 | I82: yes | J82: C | K82: 30.5 | L82: 9.5 | M82: 29.5 | N82: 12.25 | O82: 25.92 | P82: 21.67 | Q82: 4250 | R82: 22.36 | S82: 39.88 | T82: 186.4507685 | U82: 1
A83: Splash | B83: USA xxx | C83: Tom Attick | D83: tattick@chattick.com | E83: 90 | F83: 90 | G83: 96 | H83: 96 | I83: yes | J83: A
A84: Stingray | B84: 63383 | C84: Elliot Peterson | D84: tepeterson@dcscorp.com | E84: 129 | F84: 129 | G84: 129 | H84: 129 | I84: yes | J84: B | K84: 38 | L84: 10.95 | M84: 32.4 | N84: 12 | O84: 27.9 | P84: 23.8 | Q84: 5100 | R84: 24.12 | S84: 45.56 | T84: 168.885081 | U84: 1
A85: Stormy Petrel | B85: 93644 | C85: PAX | E85: 168 | F85: 168 | G85: 168 | H85: 168 | I85: no | J85: C
A86: Supra Turbo | B86: 2610 | C86: Peter D'Arista | D86: peterd@toyotamd.com | E86: 78 | F86: 78 | G86: 87 | H86: 87 | I86: Yes | J86: A
A87: The Doghouse | B87: 63199 | C87: Dan Shannon | D87: shannon63199@verizon.net | E87: 111 | F87: 111 | G87: 111 | H87: 111 | I87: yes | J87: B | K87: 40 | L87: 12 | M87: 35 | N87: 12 | O87: 29.5 | P87: 25 | Q87: 6000 | R87: 24.12 | S87: 47.08 | T87: =((Q87/(2240*POWER((P87/100),3)))) -> 171.4285714 | U87: 1
A88: Valiant | B88: 60177 | C88: John Durniak | D88: johndurniak@yahoo.com | E88: 93 | F88: 93 | G88: 93 | H88: 93 | I88: no | J88: A | K88: 58.71 | L88: 18.45 | M88: 50.75 | N88: 16 | O88: 44 | P88: 35.8 | Q88: 31641 | R88: 16.63 | S88: 33.83 | T88: =((Q88/(2240*POWER((P88/100),3)))) -> 307.8598848
A89: Wicked Good | B89: 93121 | C89: Mark Gyorgy | D89: mygorgy@dscorp.com | E89: 132 | F89: 132 | G89: 132 | H89: 132 | I89: yes | J89: B | K89: 35.25 | L89: 10.2 | M89: 37.2 | N89: 12 | O89: 26.83 | P89: 23.42 | Q89: 3800 | R89: 29.81 | S89: 51.7 | T89: 132.0610987 | U89: 1
A90: Spinnster | B90: 161 | C90: Betsy Dodge | D90: bdodge33@comcast.net | E90: 171 | I90: yes | J90: C | K90: 30.5 | L90: 9.5 | M90: 29.5 | N90: 12.25 | O90: 25.92 | P90: 21.67 | Q90: 4250 | R90: 22.36 | S90: 39.88 | T90: =((Q90/(2240*POWER((P90/100),3)))) -> 186.4507685
A91: Splash | B91: USA 173 | C91: Tom Attick | D91: tattick@chattick.com | E91: 111 | H91: 111 | I91: yes | J91: B | K91: 40 | L91: 12 | M91: 35 | N91: 12 | O91: 29.5 | P91: 25 | Q91: 5500 | R91: 25.56 | S91: 49.85 | T91: 157.1428571
A92: Status Quo | B92: 63076 | C92: Jimmy Yurko | D92: jimmydyurko@yahoo.com | E92: 108 | H92: 108 | I92: yes | J92: A | K92: 36 | L92: 11.75 | M92: 31.5 | N92: 10.75 | O92: 30 | P92: 27.5 | Q92: 3750 | R92: 27.8 | S92: 55.79 | T92: 80.49801438
A93: Stingray | B93: 63383 | C93: Elliot Peterson | D93: tepeterson@dcscorp.com | E93: 129 | H93: 129 | I93: yes | J93: B | K93: 38 | L93: 10.95 | M93: 32.4 | N93: 12 | O93: 27.9 | P93: 23.8 | Q93: 5100 | R93: 24.12 | S93: 45.56 | T93: 168.885081
A94: Synergy | B94: 83096 | C94: Peter LaRoche | D94: no email | E94: 168 | H94: 168 | I94: no | J94: C | K94: 39 | L94: 12.5 | M94: 34.25 | N94: 11.5 | O94: 29.96 | P94: 25.25 | Q94: 7950 | R94: 19.5 | S94: 37.94 | T94: 220.4626193
A95: Tenounce | B95: 99 | C95: John Mckinney | D95: no email | H95: 174 | I95: no | J95: C | K95: 41.5 | L95: 13.87 | M95: 35 | N95: 13.75 | O95: 33.17 | P95: 26.25 | Q95: 10500 | R95: 19.46 | S95: 19.46 | T95: 259.1512796
A96: The Doghouse | B96: 63199 | C96: Dan Shannon | D96: shannon63199@verizon.net | E96: 111 | H96: 111 | I96: yes | J96: B | K96: 40 | L96: 12 | M96: 35 | N96: 12 | O96: 29.5 | P96: 25 | Q96: 6000 | R96: 24.12 | S96: 47.08 | T96: 171.4285714
A97: The Riddler | B97: 63243 | C97: Clarke McKinney | D97: cmckinney@quantumsails.com | E97: 108 | H97: 114 | I97: yes | J97: A | K97: 34 | L97: 11 | M97: 32.5 | N97: 11.5 | O97: 29.67 | P97: 27.5 | Q97: 3600 | R97: 28.36 | S97: 58.78 | T97: 77.27809381
A98: Toby | B98: 142 | C98: Chris Eggert | D98: christopher.eggert@navy.mil | E98: 141 | H98: 141 | I98: yes | J98: B | K98: 47.5 | L98: 15 | M98: 41.75 | N98: 11.5 | O98: 36 | P98: 29 | Q98: 12800 | R98: 19.03 | S98: 37.77 | T98: 234.2976635
A99: Valiant | B99: 60177 | C99: L. Allen, Navy PAX SC | D99: robert@luckritz.com | E99: 93 | H99: 93 | I99: yes * | J99: A | K99: 58.71 | L99: 18.45 | M99: 50.75 | N99: 16 | O99: 44 | P99: 35.8 | Q99: 31641 | R99: 16.63 | S99: 33.83 | T99: 307.8598848
A100: Whiskers | B100: 63063 | C100: Jim Whited | D100: jimw625@comcast.net | E100: 96 | H100: 96 | I100: yes | J100: A | K100: 50.9 | L100: 15.16 | M100: 44.1 | N100: 13.1 | O100: 37 | P100: 30.32 | Q100: 12938 | R100: 21.49 | S100: 42.34 | T100: 207.2199371
A101: Wicked Good | B101: 93121 | C101: Mark Gyorgy | D101: mygorgy@dscorp.com | E101: 132 | H101: 132 | I101: yes | J101: B | K101: 35.25 | L101: 10.2 | M101: 37.2 | N101: 12 | O101: 26.83 | P101: 23.42 | Q101: 3800 | R101: 29.81 | S101: 51.7 | T101: 132.0610987
A102: Wild Thing | B102: 87638 | C102: Jimmy Yurko | D102: jimmydyurko@yahoo.com | E102: 183 | H102: 186 | I102: yes | J102: C | K102: 22.6 | L102: 7.25 | M102: 24.04 | N102: 9.33 | O102: 20.33 | P102: 18.42 | Q102: 1160 | R102: 31.82 | S102: 54.07 | T102: 82.85926819
A103: Family Truckster | B103: USA788 | C103: Clarke Mckinney | D103: cmckinney@quantumsails.com | E103: 120 | H103: 129 | I103: no | J103: B | K103: 31.5 | L103: 9.5 | M103: 30 | N103: 12.5 | O103: 26.25 | P103: 22 | Q103: 2900 | R103: 29.88 | S103: 72.56 | T103: 121.5855426

Sheet ScoreSheet
A1: SMSA Scoring Worksheet | E1: Race Name _________________________________
B2: Date : | C2: _____________________ | F2: RC: | G2: ____________________
B3: Course: | C3: _______________________________________ | K3: Finish time
A4: Boat | B4: SailNo | C4: Owner | D4: Spin | E4: NonSpin | F4: Race Fee | G4: Spinclass | H4: Checked In | I4: Start Class | J4: (hr) | K4: (min) | L4: (sec) | M4: Notes
A6: =Boats!A4 -> American Flyer | B6: =Boats!B4 -> 39519 | C6: =Boats!C4 -> Dan Schneider | D6: =Boats!E4 -> 36 | E6: =Boats!H4 -> 42 | F6: =Boats!I4 -> no | G6: =Boats!J4 -> A
A7: =Boats!A5 -> Arctic Tern | B7: =Boats!B5 -> 93642 | C7: =Boats!C5 -> PAX | D7: =Boats!E5 -> 168 | E7: =Boats!H5 -> 168 | F7: =Boats!I5 -> yes | G7: =Boats!J5 -> C
A8: =Boats!A6 -> Bad Cat | B8: =Boats!B6 -> 063 | C8: =Boats!C6 -> Jim Whited | D8: =Boats!E6 -> 39 | E8: =Boats!H6 -> 48 | F8: =Boats!I6 -> yes | G8: =Boats!J6 -> A
A9: =Boats!A7 -> Badger | B9: =Boats!B7 -> 144 | C9: =Boats!C7 -> Carl Feusaherns | D9: =Boats!E7 -> 177 | E9: =Boats!H7 -> 177 | F9: =Boats!I7 -> yes | G9: =Boats!J7 -> C
A10: =Boats!A8 -> Blue Boat Home | B10: =Boats!B8 -> 4856 | C10: =Boats!C8 -> Lowell Martin | D10: =Boats!E8 -> 231 | E10: =Boats!H8 -> 231 | F10: =Boats!I8 -> yes | G10: =Boats!J8 -> C
A11: =Boats!A9 -> Blue Goose | B11: =Boats!B9 -> 93643 | C11: =Boats!C9 -> PAX | D11: =Boats!E9 -> 168 | E11: =Boats!H9 -> 168 | F11: =Boats!I9 -> no | G11: =Boats!J9 -> C
A12: =Boats!A10 -> Cheetah | B12: =Boats!B10 -> 50473 | C12: =Boats!C10 -> Marc Briere | D12: =Boats!E10 -> 36 | E12: =Boats!H10 -> 45 | F12: =Boats!I10 -> yes | G12: =Boats!J10 -> A
A13: =Boats!A11 -> Easy Button | B13: =Boats!B11 -> 93084 | C13: =Boats!C11 -> David Meiser | D13: =Boats!E11 -> 159 | E13: =Boats!H11 -> 159 | F13: =Boats!I11 -> yes | G13: =Boats!J11 -> C
A14: =Boats!A12 -> Elan | B14: =Boats!B12 -> 43162 | C14: =Boats!C12 -> Gary Shaw | D14: =Boats!E12 -> 153 | E14: =Boats!H12 -> 153 | F14: =Boats!I12 -> yes | G14: =Boats!J12 -> C
A15: =Boats!A13 -> Flyer | B15: =Boats!B13 -> 25126 | C15: =Boats!C13 -> Michael Major | D15: =Boats!E13 -> 111 | E15: =Boats!H13 -> 114 | F15: =Boats!I13 -> no | G15: =Boats!J13 -> B
A16: =Boats!A14 -> J Ray | B16: =Boats!B14 -> USA47 | C16: =Boats!C14 -> Larry Ray | D16: =Boats!E14 -> 114 | E16: =Boats!H14 -> 120 | F16: =Boats!I14 -> yes | G16: =Boats!J14 -> B
A17: =Boats!A15 -> Juggernaut | B17: =Boats!B15 -> 51277 | C17: =Boats!C15 -> David Ahearn | D17: =Boats!E15 -> 39 | E17: =Boats!H15 -> 39 | F17: =Boats!I15 -> no | G17: =Boats!J15 -> A
A18: =Boats!A16 -> Kraken | B18: =Boats!B16 -> 43289 | C18: =Boats!C16 -> Scott Roland | D18: =Boats!E16 -> 180 | E18: =Boats!H16 -> 180 | F18: =Boats!I16 -> yes | G18: =Boats!J16 -> C
A19: =Boats!A17 -> Krugerrand | B19: =Boats!B17 -> 53477 | C19: =Boats!C17 -> Sarah Southworth | D19: =Boats!E17 -> 132 | E19: =Boats!H17 -> 132 | F19: =Boats!I17 -> yes | G19: =Boats!J17 -> B
A20: =Boats!A18 -> Lickety Split | B20: =Boats!B18 -> 43067 | C20: =Boats!C18 -> Donna Maneely | D20: =Boats!E18 -> 168 | E20: =Boats!H18 -> 168 | F20: =Boats!I18 -> yes | G20: =Boats!J18 -> C
A21: =Boats!A19 -> Natural Disaster | B21: =Boats!B19 -> 63243 | C21: =Boats!C19 -> Thomas Moulds | D21: =Boats!E19 -> 114 | E21: =Boats!H19 -> 114 | F21: =Boats!I19 -> yes | G21: =Boats!J19 -> B
A22: =Boats!A20 -> Pony Express | B22: =Boats!B20 -> 50588 | C22: =Boats!C20 -> Jimmy Yurko | D22: =Boats!E20 -> 132 | E22: =Boats!H20 -> 138 | F22: =Boats!I20 -> yes | G22: =Boats!J20 -> B
A23: =Boats!A21 -> Pursuit | B23: =Boats!B21 -> 23798 | C23: =Boats!C21 -> Norm Dawley | D23: =Boats!E21 -> 51 | E23: =Boats!H21 -> 66 | F23: =Boats!I21 -> yes | G23: =Boats!J21 -> A
A24: =Boats!A22 -> Rakali | B24: =Boats!B22 -> USAxxx | C24: =Boats!C22 -> Mark Witte | D24: =Boats!E22 -> 90 | E24: =Boats!H22 -> 96 | F24: =Boats!I22 -> yes | G24: =Boats!J22 -> A
A25: =Boats!A23 -> Shamal | B25: =Boats!B23 -> 23827 | C25: =Boats!C23 -> Jeff Carlsen | D25: =Boats!E23 -> 174 | E25: =Boats!H23 -> 174 | F25: =Boats!I23 -> yes | G25: =Boats!J23 -> C
A26: =Boats!A24 -> Shermax | B26: =Boats!B24 -> 2276 | C26: =Boats!C24 -> Max Munger | D26: =Boats!E24 -> 177 | E26: =Boats!H24 -> 177 | F26: =Boats!I24 -> no | G26: =Boats!J24 -> C
A27: =Boats!A25 -> Short Bus | B27: =Boats!B25 -> 71221 | C27: =Boats!C25 -> Hawk Caldwell | D27: =Boats!E25 -> 45 | E27: =Boats!H25 -> 54 | F27: =Boats!I25 -> yes | G27: =Boats!J25 -> A
A28: =Boats!A26 -> Spinnster | B28: =Boats!B26 -> 161 | C28: =Boats!C26 -> Betsy Dodge | D28: =Boats!E26 -> 171 | E28: =Boats!H26 -> 171 | F28: =Boats!I26 -> yes | G28: =Boats!J26 -> C
A29: =Boats!A27 -> Splash | B29: =Boats!B27 -> USA xxx | C29: =Boats!C27 -> Tom Attick | D29: =Boats!E27 -> 90 | E29: =Boats!H27 -> 96 | F29: =Boats!I27 -> yes | G29: =Boats!J27 -> A
A30: =Boats!A28 -> Stingray | B30: =Boats!B28 -> 63383 | C30: =Boats!C28 -> Elliot Peterson | D30: =Boats!E28 -> 129 | E30: =Boats!H28 -> 129 | F30: =Boats!I28 -> yes | G30: =Boats!J28 -> B
A31: =Boats!A29 -> Stormy Petrel | B31: =Boats!B29 -> 93644 | C31: =Boats!C29 -> PAX | D31: =Boats!E29 -> 168 | E31: =Boats!H29 -> 168 | F31: =Boats!I29 -> no | G31: =Boats!J29 -> C
A32: =Boats!A30 -> Supra Turbo | B32: =Boats!B30 -> 2610 | C32: =Boats!C30 -> Peter D'Arista | D32: =Boats!E30 -> 78 | E32: =Boats!H30 -> 87 | F32: =Boats!I30 -> Yes | G32: =Boats!J30 -> A
A33: =Boats!A31 -> The Doghouse | B33: =Boats!B31 -> 63199 | C33: =Boats!C31 -> Dan Shannon | D33: =Boats!E31 -> 111 | E33: =Boats!H31 -> 111 | F33: =Boats!I31 -> yes | G33: =Boats!J31 -> B
A34: =Boats!A32 -> Triton's Fury | B34: =Boats!B32 -> 499 | C34: =Boats!C32 -> T. J. O'Farrell | D34: =Boats!E32 -> 252 | E34: =Boats!H32 -> 252 | F34: =Boats!I32 -> no | G34: =Boats!J32 -> C
A35: =Boats!A33 -> Wicked Good | B35: =Boats!B33 -> 93121 | C35: =Boats!C33 -> Mark Gyorgy | D35: =Boats!E33 -> 132 | E35: =Boats!H33 -> 132 | F35: =Boats!I33 -> yes | G35: =Boats!J33 -> B
A36: =Boats!A34 -> Wild Thing | B36: =Boats!B34 -> 87638 | C36: =Boats!C34 -> Jimmy Yurko | D36: =Boats!E34 -> 186 | E36: =Boats!H34 -> 186 | F36: =Boats!I34 -> no | G36: =Boats!J34 -> C
C42: Boats without Handicap ratings will be scored with a 0 rating. Scores will be updated when the Provisional Handicap is assigned.

Sheet RSinput
A1: Sail | B1: BoatName | C1: PHRF | G1: Finish | H1: Division

Sheet Course
B1: 20 | C1: 20 | G1: 20 | H1: 20 | K1: 20 | L1: 20
B2: 20 | C2: 20 | F2: A | G2: 2 | H2: 2 | J2: A | K2: 2 | L2: 2 | N2: Page has been customized for Wednesday night MARKS
A3: A | B3: 2 | C3: 2 | F3: B | G3: 3 | H3: 3 | J3: B | K3: 3 | L3: 3
A4: B | B4: 3 | C4: 3 | F4: C | G4: 4 | H4: 4 | J4: E | K4: 5 | L4: 5
A5: E | B5: 5 | C5: 5 | F5: E | G5: 5 | H5: 5 | J5: K | K5: 10 | L5: 10
A6: K | B6: 10 | C6: 10 | F6: G | G6: 6 | H6: 6 | J6: L | K6: 11 | L6: 11
A7: L | B7: 11 | C7: 11 | F7: H | G7: 7 | H7: 7 | J7: M | K7: 12 | L7: 12
A8: M | B8: 12 | C8: 12 | F8: I | G8: 8 | H8: 8 | J8: S | K8: 17 | L8: 17
A9: S | B9: 17 | C9: 17 | F9: J | G9: 9 | H9: 9 | J9: T | K9: 14 | L9: 14
A10: T | B10: 14 | C10: 14 | F10: K | G10: 10 | H10: 10 | J10: X | K10: 16 | L10: 16
A11: V | B11: 16 | C11: 16 | F11: L | G11: 11 | H11: 11 | J11: Y | K11: 18 | L11: 18
A12: X | B12: 20 | C12: 20 | F12: M | G12: 12 | H12: 12 | J12: Z | K12: 19 | L12: 19
A13: Y | B13: 18 | C13: 18 | F13: S | G13: 17 | H13: 17
A14: Z | B14: 19 | C14: 19 | F14: T | G14: 14 | H14: 14
F15: V | G15: 16 | H15: 16
F16: X | G16: 16 | H16: 16
F17: Y | G17: 18 | H17: 18
F18: Z | G18: 19 | H18: 19
B19: Active | G19: All | K19: Bay
B22: A | C22: B | D22: C | E22: E | F22: G | G22: H | H22: I | I22: J | J22: K | K22: L | L22: M | M22: N | N22: T | O22: U | P22: V | Q22: S | R22: Y | S22: Z | T22: X
A23: A | B23: 0 | C23: 0.94 | D23: 3.41 | E23: 2.15 | F23: 3.72 | G23: 5.41 | H23: 5.95 | I23: 6.47 | J23: 1.76 | K23: 2.36 | L23: 2.83 | M23: 0 | N23: 0.92 | O23: 2.54 | P23: 0.9 | Q23: 2.38 | R23: 1.41 | S23: 2.35 | T23: 1.35
A24: B | B24: 0.94 | C24: 0 | D24: 2.47 | E24: 1.28 | F24: 2.82 | G24: 4.47 | H24: 5.01 | I24: 5.53 | J24: 2.75 | K24: 3.22 | L24: 3.71 | M24: 0 | N24: 1.6 | O24: 3.37 | P24: 1.84 | Q24: 3.2 | R24: 2.17 | S24: 3.11 | T24: 2.15
A25: C | B25: 3.41 | C25: 2.47 | D25: 0 | E25: 2.57 | F25: 3.11 | G25: 2.14 | H25: 3.79 | I25: 3.23 | T25: 0
A26: E | B26: 2.15 | C26: 1.28 | D26: 2.57 | E26: 0 | F26: 1.57 | G26: 4.14 | H26: 4 | I26: 5.09 | T26: 0
A27: G | B27: 3.72 | C27: 2.82 | D27: 3.11 | E27: 1.57 | F27: 0 | G27: 3.85 | H27: 2.7 | I27: 4.57 | T27: 0
A28: H | B28: 5.41 | C28: 4.47 | D28: 2.14 | E28: 4.14 | F28: 3.85 | G28: 0 | H28: 2.84 | I28: 1.1 | T28: 0
A29: I | B29: 5.95 | C29: 5.01 | D29: 3.79 | E29: 4 | F29: 2.7 | G29: 2.84 | H29: 0 | I29: 2.87 | T29: 0
A30: J | B30: 6.47 | C30: 5.53 | D30: 3.23 | E30: 5.09 | F30: 4.57 | G30: 1.1 | H30: 2.87 | I30: 0 | T30: 0
A31: K | B31: 1.76 | C31: 2.75 | J31: 0 | K31: 1.08 | L31: 1.99 | M31: 0 | N31: 1.45 | O31: 0 | P31: 0.91 | Q31: 1.54 | R31: 1.33 | S31: 2.14 | T31: 1.15
A32: L | B32: 2.36 | C32: 3.22 | J32: 1.08 | K32: 0 | L32: 1 | M32: 0 | N32: 1.63 | O32: 0 | P32: 1.74 | Q32: 0.76 | R32: 1.22 | S32: 1.9 | T32: 1.06
A33: M | B33: 2.83 | C33: 3.71 | J33: 1.99 | K33: 1 | L33: 0 | M33: 0 | N33: 2.11 | O33: 0 | P33: 2.41 | Q33: 0.56 | R33: 1.7 | S33: 2.38 | T33: 1.45
A34: N | B34: 1.67 | C34: 2.5 | J34: 0 | K34: 0 | L34: 0 | M34: 0 | N34: 0 | O34: 0 | P34: 0 | R34: 0 | S34: 0 | T34: 0
A35: T | B35: 0.9 | C35: 1.58 | J35: 1.45 | K35: 1.63 | L35: 2.11 | M35: 0 | N35: 0 | O35: 0 | P35: 1.01 | Q35: 1.55 | R35: 0.57 | S35: 1.55 | T35: 0.52
A36: U | B36: 2.54 | C36: 3.37 | J36: 0 | K36: 0 | L36: 0 | M36: 0 | N36: 0 | O36: 0 | P36: 0 | Q36: 0 | R36: 0 | S36: 0 | T36: 0
A37: V | B37: 0.9 | C37: 1.84 | J37: 0.91 | K37: 1.74 | L37: 2.41 | M37: 0 | N37: 1.01 | O37: 0 | P37: 0 | Q37: 1.89 | R37: 1.24 | S37: 2.16 | T37: 1.1
A38: S | B38: 2.38 | C38: 3.2 | J38: 1.54 | K38: 0.76 | L38: 0.56 | M38: 0 | N38: 1.55 | P38: 1.89 | Q38: 0 | R38: 1.2 | S38: 1.86 | T38: 1.11
A39: Y | B39: 1.41 | C39: 2.17 | J39: 1.33 | K39: 1.22 | L39: 1.7 | M39: 0 | N39: 0.57 | O39: 0 | P39: 1.24 | Q39: 1.2 | R39: 0 | S39: 0.94 | T39: 0.15
A40: Z | B40: 2.35 | C40: 3.11 | J40: 2.14 | K40: 1.9 | L40: 2.38 | M40: 0 | N40: 1.55 | O40: 0 | P40: 2.16 | Q40: 1.86 | R40: 0.94 | S40: 0 | T40: 1.15
A41: X | B41: 1.35 | C41: 2.15 | D41: 0 | E41: 0 | F41: 0 | G41: 0 | H41: 0 | I41: 0 | J41: 1.15 | K41: 1.06 | L41: 1.45 | M41: 0 | N41: 0.52 | O41: 0 | P41: 1.1 | Q41: 1.11 | R41: 0.15 | S41: 1.15 | T41: 0
A45: Middle Distance Series Course Table
E46: NS | F46: Spin
A47: Sharps Island Race | E47: 39.9 | F47: 39.9
A48: Little Choptank Race | E48: 32.5 | F48: 32.5
A49: Smith Point Race | E49: 42 | F49: 59
A50: Hooper Island Point-No-Point Race | E50: 29.4 | F50: 29.4
